{"text_format":"1","workbook":"xlsx","n_sheets":22,"sheets":["Cover Page","Contents","Facility Info","Operational Data","Operational Summary","Perf. Form 1","Energy Form 1","Permit Compliance","Improvements","Public Liasion","CO2 N2O","Residue Quality ","Water","Air (periodic)","Air (CEMS)","HCl","SO2","NOx","TOC","Particulates","CO 95% 10 min","NH3"],"not_rendered":{"charts":7,"images":3,"macros":1,"external_links":0,"defined_names":22,"comments":0,"pivot_tables":0},"unopened":[],"bounds":{"document_bytes":16777216,"sheet_cells":100000,"rows_first":2000,"rows_last":500,"rows_between":2000,"halvings":0,"cell_chars":16384,"cell_head_chars":4096},"cells_cut":0,"cells_raw":0,"read":"whole","date_system":"1900"}

{"sheet":"Cover Page","index":0,"n_rows":54,"n_cols":14,"rows_kept":54,"cut":false,"hidden":false,"merged":[[13,13,18,15],[34,1,34,8],[0,3,5,6],[7,1,23,8],[28,1,28,8],[30,1,30,8],[32,1,32,8],[49,2,49,3],[49,6,49,8],[53,2,53,3],[36,1,36,8],[40,2,40,8],[42,2,42,4],[44,2,44,4],[46,2,46,3],[46,6,46,8],[47,2,47,3],[47,6,47,8]]}
[null,null,null,"Add company logo"]
[null,null,null,null,null,null,null,null,null,null,null,null,null,"Version 23.4a (for incinerators) - 15/11/2023"]
[]
[null,null,null,null,null,null,null,null,null,null,null,null,null,"Note that there is another version of this template available for co-incinerators"]
[]
[]
[]
[null,"Add photo"]
[]
[]
[]
[]
[null,null,null,null,null,null,null,null,null,null,null,null,null,"Notes:"]
[null,null,null,null,null,null,null,null,null,null,null,null,null,"This template may require adjustments by individual operators to meet specific reporting requirements as defined in the site Permit(s)"]
[]
[]
[]
[]
[]
[]
[]
[]
[]
[]
[]
[]
[]
[]
[null,"Annual Performance Report 2023"]
[]
[null,"Permit EPR/WP3438HZ"]
[]
[null,"Suffolk Energy from Waste Facility"]
[]
[]
[]
[null,"SUEZ Recycling and Recovery Suffolk Ltd"]
[]
[null,"Year:",2023]
[]
[null,"Address:","Lodge Lane, Great Blakenham, Suffolk, IP6 0JE"]
[]
[null,"Tel: ","01473 839149"]
[]
[null,"Email: ","james.clarke@suez.com"]
[]
[null,"Prepared by:","Richard Watkins",null,null,"Position:","EIR Manager"]
[null,null,"Robert Taylor",null,null,null,"Technical Plant Engineer"]
[]
[null,"Approved by:","James Clarke",null,null,"Position:","EfW Plant Manager"]
[]
[null,"Version:",2]
[]
[null,"Issue Date:","2024-03-18"]

{"sheet":"Contents","index":1,"n_rows":45,"n_cols":11,"rows_kept":45,"cut":false,"hidden":false,"merged":[[4,10,7,14],[8,1,8,6],[3,1,3,6],[4,1,4,6],[5,1,5,6],[6,1,6,6],[7,1,7,6],[21,1,21,6],[9,1,9,6],[10,1,10,6],[11,1,11,6],[13,1,13,6],[14,1,14,6],[15,1,15,6],[16,1,16,6],[17,1,17,6],[18,1,18,6],[19,1,19,6],[20,1,20,6],[12,1,12,6],[36,1,36,6],[22,1,22,6],[23,1,23,6],[24,1,24,6],[27,1,27,6],[28,1,28,6],[29,1,29,6],[30,1,30,6],[31,1,31,6],[32,1,32,6],[35,1,35,6],[44,0,47,9],[37,1,37,6],[38,1,38,6],[39,1,39,6],[40,1,40,6],[41,1,41,6],[42,1,42,6]]}
[{"$f":"+'Cover Page'!$B$29","v":"Annual Performance Report 2023"},null,null,null,{"$f":"+'Cover Page'!$B$33","v":"Suffolk Energy from Waste Facility"}]
[]
["Contents",null,null,null,null,null,null,null,null,null,"Notes:"]
["Section","Subject",null,null,null,null,null,"Page ",null,null,"Section references and Page nos. to be inserted"]
[null,"Facility Information",null,null,null,null,null,null,null,null,"Sections and Subjects may require adjustment by individual operators to meet specific reporting requirements as defined in the sites Permit(s)"]
[null,"Operational Data"]
[null,"Operational Summary"]
[null,"Performance Form 1"]
[null,"Energy Form 1"]
[null,"Permit Compliance"]
[null,"Improvements"]
[null,"Public Liaison"]
[null,"Carbon dioxide and nitrous oxide emissions"]
[null,"Residue Quality "]
[null,"Emissions to Water"]
[null,"Emissions to Air (periodically monitored)"]
[null,"Emissions to Air (continuously monitored)"]
[null,"Hydrogen Chloride emissions"]
[null,"Sulphur Dioxide emissions"]
[null,"Oxides of Nitrogen emissions"]
[null,"Total Organic Carbon emissions"]
[null,"Particulate Matter emissions"]
[null,"Carbon Monoxide emissions"]
[null,"Ammonia emissions"]
[]
[]
["Version Control"]
["Section","Information",null,null,null,null,null,"Date"]
[1,"Original Report",null,null,null,null,null,"2024-01-30"]
[2,"Updated with amneded APCR Q4 value on Operational data tab",null,null,null,null,null,"2024-03-18"]
[]
[]
[]
[]
["Distribution"]
["Copy","Name, Role",null,null,null,null,null,"No."]
[1,"Katy Poulding - Environment Agency Regulatory Officer",null,null,null,null,null,1]
[2,"James Clarke - SUEZ Plant Manager",null,null,null,null,null,1]
[3,"Siobhan O'Dell - SUEZ Community Liaison Manager",null,null,null,null,null,1]
[4,"Samantha Edge - SUEZ Commercial Contracts Manager",null,null,null,null,null,1]
[]
[]
[]
[]
["This report is required under the Industrial Emissions Directive’s Article 55(2) requirements on reporting and public information on waste incineration plants and co-incineration plants, which require the operator to produce an annual report on the functioning and monitoring of the plant and make it available to the public. "]

{"sheet":"Facility Info","index":2,"n_rows":22,"n_cols":11,"rows_kept":22,"cut":false,"hidden":false,"merged":[[4,0,17,8],[21,0,53,8],[4,10,13,13],[21,10,30,13]]}
[{"$f":"+'Cover Page'!$B$29","v":"Annual Performance Report 2023"},null,null,null,{"$f":"+'Cover Page'!$B$33","v":"Suffolk Energy from Waste Facility"}]
[]
["Plant Description and Design",null,null,null,null,null,null,null,null,null,"Notes:"]
[]
["This non-hazardous waste incinerator operates 24/7 across two furnace lines and can receive up to 295,000 tonnes of municipal waste and commercial/Industrial waste per annum. The heat produced by waste incineration is used to raise superheated steam which generates approximately 179,000 MWh/annum of electricity.\n\nActivities associated with the incineration are receipt and storage of municipal waste and commercial/industrial waste, production of steam and electricity, abatement of flue gas and handling of Incinerator Bottom Ash (IBA) and Air Pollution Control Residue (APCR).\n\nSuffolk EfW commissioning finished on 1st December 2014, when the plant was handed over from the EPC\ncontractor to SUEZ UK. Permit conditions have applied since this date. The data included in this report corresponds to the following period; 01 January 2023 to 31 December 2023.",null,null,null,null,null,null,null,null,null,"Include summary of plant design, design capacity, no. of combustion lines, electrical and heat capacity and any other general information that describes the facility, its location and purpose "]
[]
[]
[]
[]
[]
[]
[]
[]
[]
[]
[]
[]
[]
[]
["Summary of Operational Processes and Procedures"]
[]
["RECEPTION HALL & BUNKER\nIncoming waste is delivered to site by refuse collection trucks. It is then checked in, weighed and delivered\ninto the reception hall.  A large reception hall allows for refuse collection trucks to manoeuvre and tip waste safely. Air needed for combustion is drawn into the furnace from here so that negative pressure is maintained in order to avoid odour and dust escaping the building.  Waste vehicles reverse to a wheel stop and tip their loads into a large concrete bunker. Mixing of waste occurs as the cranes driver sorts the waste looking for unsuitable material to be removed, and to improve the homogeneity of the incinerator feedstock.\n\nCONTROL ROOM\nThe plant’s control room centralises the operation of all equipment, including the grab cranes used to mix and load waste into a hopper that feeds the furnace. All on-site functions are monitored automatically and manually.  Its systems verify in real time that equipment is functioning properly, continuously monitor the combustion gas, and maximise the efficiency of the entire EfW process.\n\nGRATE AND BOILER\nWaste is lifted into the charging hoppers by the crane. From here it falls into the furnace-charging chute and then is introduced onto the grate system by hydraulic feeders for incineration. An auxiliary burner can be used to help keeping the temperature above 850°C if required. The thermal energy released from the burning is used to convert water to super-heated steam along a boiler composed of 6 vertical passes. At high pressure, this steam drives a turbine to generate electricity.\n\nELECTRICITY GENERATION\nElectricity is generated at 11kv, with an electric production of 203,226 MWh during 2023 and exporting 184,527 MWh/annum to the national grid.\n\nINCINERATOR BOTTOM ASH (IBA)\nAsh left on the grate after incineration is carried by conveyor, after quenching, to the IBA processing facility.  Up to 65,000 tonne of IBA is processed on site by the removal of ferrous and non-ferrous metal, stabilised and separated into fraction sizes of IBA prior to the export from site of the processed IBA and metals for re-use.\n\nEMISSION CONTROL & AIR POLLUTION CONTROL RESIDUE (APCR)\nThe gases from the furnace are subject to a rigorous cleaning process involving urea as selective non-catalytic reduction (SNCR), lime and active carbon injections. This removes oxides of nitrogen, acidic gases, dioxins, and heavy metals from the gas stream.  The cleaned gas passes through fine-fabric bag filters to remove solid particles before it is emitted through the stack. The resultant APCR residue, or fly-ash, contains particles from the incineration process, lime used in the flue gas treatment, salts and carbon dust. It is stored in a sealed silo until it is tankered away for recycling.\n\nEMISSIONS MONITORING\nAs they pass through the stack, the residual flue gases from the process are continuously monitored before release. This data is relayed automatically to the control room.",null,null,null,null,null,null,null,null,null,"Include summary of key processes and procedures such as (but not limited to); waste reception, control rooms, grate, bed and boiler, energy & heat  generation, cooling systems, residue management, emission controls, health and safety systems, maintenance"]

{"sheet":"Operational Data","index":3,"n_rows":65,"n_cols":10,"rows_kept":65,"cut":false,"hidden":false,"merged":[[5,9,7,9],[52,0,56,0],[33,1,38,1],[3,1,3,2],[7,1,19,1],[23,1,26,1],[28,1,29,1],[9,9,20,9],[21,9,25,9]]}
[{"$f":"+'Cover Page'!$B$29","v":"Annual Performance Report 2023"},null,null,null,{"$f":"+'Cover Page'!$B$33","v":"Suffolk Energy from Waste Facility"}]
[]
["Operational Data"]
["Plant Size",295000,null,"tonnes pa",89,"MWth",26,"MWe",null,"Notes:"]
["No. of combustion lines",2,null,"No. of Turbines:",null,1,null,null,null,"* - RDF to include SRF "]
[null,null,null,null,null,null,null,null,null,"** - Combusted tonnage = tonnes delivered in period + (tonnes in bunker at start of period – tonnes in bunker at end of period), or equivalent calculation depending on plant type"]
["Waste types received","Unit","Q1","Q2","Q3","Q4","Year Total","%"]
["Household / Local Authority","tonnes",66534.34,57455.570000000007,65878.179999999993,63425.84,{"$f":"SUM(C8:F8)","v":253293.93},{"$f":"IF(G8>0,G8/$G$18,\"-\")","v":0.85976797384966452}]
["Commercial & Industrial ",null,7808.16,4545.84,8001.98,13268.68,{"$f":"SUM(C9:F9)","v":33624.660000000003},0.11413382784018497,null,"*** - CHP plants only"]
["Hazardous ",null,0,0,0,0,0,"-",null,"**** Availability Definition: 'the availability of a line is to be calculated by the number of hours the line reported Continuously Monitored emission levels to the Regulator through the calendar year divided by the total number of hours in that year. \n\nThe overall plant availability is calculated as the Mean of all lines in the plant. For clarity this includes periods of abnormal operation.'  \n\nRationale: The primary function of an Energy from Waste facility is the disposal of waste. It follows therefore that the availability of a plant is determined by the period of time a facility spends undertaking this activity."]
["Clinical",null,1846.94,1471.26,1944.96,2425.56,7688.7199999999993,2.6098198310150551E-2]
["Waste wood (biomass) ",null,null,null,null,null,0,"-"]
["Refuse Derived Fuel * - H'hold/LA",null,null,null,null,null,{"$f":"SUM(C13:F13)","v":0},"-"]
["Refuse Derived Fuel *  - C&I",null,null,null,null,null,0,"-"]
["Other [Please specify]",null,null,null,null,null,0,"-"]
["Other [Please specify]",null,null,null,null,null,0,"-"]
["Other [Please specify]",null,null,null,null,null,0,"-"]
["Total waste received",null,{"$f":"SUM(C8:C17)","v":76189.440000000002},{"$f":"SUM(D8:D17)","v":63472.670000000006},{"$f":"SUM(E8:E17)","v":75825.119999999995},{"$f":"SUM(F8:F17)","v":79120.079999999987},294607.31]
["Rejected Waste ",null,null,null,null,null,{"$f":"SUM(C19:F19)","v":0},{"$f":"IF(G19>0,G19/$G$18,\"-\")","v":"-"}]
["Unprocessed waste transferred out",null,null,null,null,null,{"$f":"SUM(C20:F20)","v":0},{"$f":"IF(G20>0,G20/$G$18,\"-\")","v":"-"}]
["Total waste combusted **",null,{"$f":"C18+1880-2074","v":75995.44},{"$f":"D18+2074-3757","v":61789.670000000013},{"$f":"E18+3757-1639","v":77943.12},{"$f":"F18+1639-1490","v":79269.079999999987},{"$f":"SUM(C21:F21)","v":294997.31}]
[null,null,null,null,null,null,null,null,null,"Password for protected cells\nA password has been set to prevent accidental  editing of cells with formulae. \nIf you still need to make an edit for some reason then the password = 1234"]
["Energy Usage / Export","Unit","Q1","Q2","Q3","Q4","Year Total","KWh/te"]
["Power Generated","MWh",53553.184463999998,42407.830360799999,55723.333199999994,56541.454800000007,{"$f":"SUM(C24:F24)","v":208225.80282479999},{"$f":"IF(G24>0,G24*1000/$G$21,\"-\")","v":705.85661552235842}]
["Power Exported",null,47014.656999999999,37534.471000000005,49565.884000000005,50411.781000000003,{"$f":"SUM(C25:F25)","v":184526.79300000001},{"$f":"IF(G25>0,G25*1000/$G$21,\"-\")","v":625.52025643894854}]
["Power Used on site",null,6538.5274639999989,4873.3593607999937,6157.4491999999882,6129.6738000000041,{"$f":"SUM(C26:F26)","v":23699.009824799985},{"$f":"IF(G26>0,G26*1000/$G$21,\"-\")","v":80.336359083409903}]
["Power Imported",null,74.332999999999998,239.38866000000002,0,0,313.72166000000004,{"$f":"IF(G27>0,G27*1000/$G$21,\"-\")","v":1.0634729516686103}]
["Parasitic Load","%",{"$f":"IF(C24>0,1-C25/(C24+C27),\"-\")","v":0.12331095632832889},{"$f":"IF(D24>0,1-D25/(D24+D27),\"-\")","v":0.11988467567618866},{"$f":"IF(E24>0,1-E25/(E24+E27),\"-\")","v":0.11050037473350549},{"$f":"IF(F24>0,1-F25/(F24+F27),\"-\")","v":0.10841025972327833},{"$f":"IF(G24>0,1-G25/(G24+G27),\"-\")","v":0.11514714797649894}]
["Thermal Energy Produced ***","MWh",null,null,null,null,{"$f":"SUM(C29:F29)","v":0},{"$f":"IF(G29>0,G29*1000/$G$21,\"-\")","v":"-"}]
["Thermal Energy Exported ***",null,null,null,null,null,0,{"$f":"IF(G30>0,G30*1000/$G$21,\"-\")","v":"-"}]
["R1 value (if applicable)","R1",null,null,null,null,0.82]
[]
["Waste Disposal & Recovery","Unit","Q1","Q2","Q3","Q4","Year Total","% inputs"]
["APC Residues - produced","tonnes",2145.9,1476.5,1759.44,2004.06,{"$f":"SUM(C34:F34)","v":7385.9},{"$f":"IF(G34>0,G34/$G$21,\"-\")","v":2.503717745765207E-2}]
["IBA - produced",null,13236.56,11686.28,12884.259999999998,14254.14,52061.24,{"$f":"IF(G35>0,G35/$G$21,\"-\")","v":0.17648038892286846}]
["Metals recycling",null,2422.6,2446.58,2308.5600000000004,2375.62,{"$f":"SUM(C36:F36)","v":9553.36},3.2384566489775793E-2]
["Other",null,0,0,0,0,{"$f":"SUM(C37:F37)","v":0},"-"]
["Other",null,0,0,0,0,0,"-"]
["Other",null,0,0,0,0,0,"-"]
[]
["Raw Material Usage","Unit","Q1","Q2","Q3","Q4","Year Total","kg or m3 /te"]
["Mains Water","m3",10467.958999999999,8041,8635,10468,{"$f":"SUM(C42:F42)","v":37611.959000000003},{"$f":"IF(G42>0,G42/$G$21,\"-\")","v":0.12749932872269243}]
["Other Water","m3",null,null,null,null,0,{"$f":"IF(G43>0,G43/$G$21,\"-\")","v":"-"}]
["Ammonia","kgs",null,null,null,null,0,"-"]
["Urea","kgs",166825.20576000001,138105.65987999999,184835.52703200001,238565.21687999999,{"$f":"SUM(C45:F45)","v":728331.60955199995},2.4689432237602436]
["Activated Carbon","kgs",31194.000000000004,21985.761878967282,19521.034448623657,19521.398078918461,92222.194406509399,0.3126204588323514]
["Lime / hydrated lime","kgs",1009061.7410208001,604550.51085600001,626948.7337008001,807639.51417360001,3048200.4997512,10.332977272745978]
["Fuel oil","ltrs",54279.444696272403,115031.056101348,55263.643103663999,13021.632356572798,237595.77625785719,0.80541675535230195]
["Gas","cuf",null,null,null,null,0]
["Other",null,null,null,null,null,0]
[]
["Summary ","Line/Unit","Q1","Q2","Q3","Q4","Year Total",null,"Hrs in year "]
["Availability of waste combustion by line, hrs ****",1,2094.2179999999998,1754.82,2142.8200000000002,2208,{"$f":"SUM(C53:F53)","v":8199.8580000000002},{"$f":"+G53/$I$53","v":0.9360568493150685},8760]
[null,2,2079.19,1654.749,2205.7809999999999,2187.9490000000001,8127.6689999999999,{"$f":"+G54/$I$53","v":0.92781609589041092}]
[null,3,null,null,null,null,0,0]
[null,4,null,null,null,null,0,0]
[null,5,null,null,null,null,{"$f":"SUM(C57:F57)","v":0},0]
["Overall Availability, mean avg. of all lines, hrs",null,null,null,null,null,{"$f":"AVERAGE(G53:G54)","v":8163.7635},0.93193647260273971]
["Hours of turbine operations, hrs",1,2088.6080000000002,1914.1420000000001,2208,2208,8418.75,0.9610445205479452]
["Hours of turbine operations, hrs",2,null,null,null,null,0,0]
["Hours of heat / steam export",null,null,null,null,null,0,{"$f":"IF(B61>0,G60/I53,\"n/a\")","v":"n/a"}]
["Net Calorific Value of waste","MJ/kg",{"$f":"8777.09737571684/1000","v":8.7770973757168402},{"$f":"8674.89899128492/1000","v":8.6748989912849197},{"$f":"8726.95475645161/1000","v":8.7269547564516099},{"$f":"8778.86965053763/1000","v":8.7788696505376294},{"$f":"AVERAGE(C62:F62)","v":8.7394551934977507}]
["Abnormal Events","qty.",0,0,0,0,0,{"$f":"IF(G63>0,\"yes\",\"no\")","v":"no"}]
["Abnormal operation","hours",0,0,0,0,0,{"$f":"+(G64)/I53","v":0}]
["Permit Breaches","qty.",3,0,null,null,3,{"$f":"IF(G65>0,\"yes\",\"no\")","v":"yes"}]

{"sheet":"Operational Summary","index":4,"n_rows":31,"n_cols":11,"rows_kept":31,"cut":false,"hidden":false,"merged":[[4,0,26,8],[30,0,51,8],[4,10,13,13],[30,10,39,13]]}
[{"$f":"+'Cover Page'!$B$29","v":"Annual Performance Report 2023"},null,null,null,{"$f":"+'Cover Page'!$B$33","v":"Suffolk Energy from Waste Facility"}]
[]
["Summary of Plant Operations and Maintenance during the reporting year",null,null,null,null,null,null,null,null,null,"Notes:"]
[]
["Suffolk EfW has continued to have a successful operating period in 2023 continuing to demonstrate high levels of availability.\n\nThe outage was concluded successfully with repairs and upgrades to refractory in the first pass and replacement of all bag filters.",null,null,null,null,null,null,null,null,null,"Include summary of key operational and/or maintenance activity undertaken in the year, such as any major component upgrades and/or replacements "]
[]
[]
[]
[]
[]
[]
[]
[]
[]
[]
[]
[]
[]
[]
[]
[]
[]
[]
[]
[]
[]
[]
[]
["Summary of Residue Handling for the reporting year"]
[]
["All IBA produced by the EfW plant is transferred to the IBA recycling plant by conveyor, the IBA recycling plant is operated by Blue Phoenix. The IBA is non-hazardous, as confirmed by weekly analysis of the IBA,  and undergoes a mechanical separation process to remove all ferrous and non-ferrous metals leaving an IBA aggregate product. The metals are transferred to other operators for recycling and the IBA is applied to land in construction activities as a replacement for virgin (quarried) aggregate. This is in accordance with Environment Agency Regulatory Position Statement (RPS) 247 \"Using unbound IBAA in construction activities\".\n\nAir Pollution Control (APC) residues is the fly ash from the boiler mixed with dry sorbents such as carbon and lime in the flu gas treatment plant. The APC residue is hazardous and is therefore collected and disposed of to landfill\n\nSome additional residues may be produced during cleaning of the boiler during cleaning activities in planned maintenance outages. This boiler ash, often mixed with grit blast residues from the cleaning process, is disposed of to landfill.",null,null,null,null,null,null,null,null,null,"Include in here a summary of residue handling regimes and destinations "]

{"sheet":"Perf. Form 1","index":5,"n_rows":54,"n_cols":10,"rows_kept":54,"cut":false,"hidden":false,"merged":[[9,0,9,9],[10,0,10,1],[10,2,10,3],[10,4,10,5],[10,6,10,7],[10,8,10,9],[2,0,2,4],[2,6,2,8],[3,1,3,4],[5,3,5,4],[5,6,5,7],[8,0,8,1],[8,2,8,3],[8,4,8,5],[8,6,8,7],[8,8,8,9],[11,0,11,1],[11,2,11,3],[11,4,11,5],[11,6,11,7],[11,8,11,9],[12,0,12,1],[12,2,12,3],[12,4,12,5],[12,6,12,7],[12,8,12,9],[15,0,15,1],[15,2,15,3],[15,4,15,5],[15,6,15,7],[15,8,15,9],[16,0,16,9],[13,0,13,1],[13,2,13,3],[13,4,13,5],[13,6,13,7],[13,8,13,9],[14,0,14,3],[14,4,14,5],[14,6,14,7],[14,8,14,9],[17,0,17,1],[17,2,17,3],[17,4,17,5],[17,6,17,7],[17,8,17,9],[18,0,18,1],[18,2,18,3],[18,4,18,5],[18,6,18,7],[18,8,18,9],[19,0,19,1],[19,2,19,3],[19,4,19,5],[19,6,19,7],[19,8,19,9],[20,0,20,1],[20,2,20,3],[20,4,20,5],[20,6,20,7],[20,8,20,9],[21,0,21,1],[21,2,21,3],[21,4,21,5],[21,6,21,7],[21,8,21,9],[22,0,22,3],[22,4,22,5],[22,6,22,7],[22,8,22,9],[31,0,31,3],[31,7,31,8],[32,0,32,3],[32,4,32,5],[32,7,32,8],[33,0,33,3],[33,4,33,5],[33,7,33,8],[23,0,23,3],[23,4,23,5],[23,6,23,7],[23,8,23,9],[25,0,25,9],[26,0,28,9],[36,0,36,3],[36,4,36,5],[36,7,36,8],[37,0,37,3],[37,4,37,5],[37,7,37,8],[34,0,34,3],[34,4,34,5],[34,7,34,8],[35,0,35,3],[35,4,35,5],[35,7,35,8],[47,0,47,1],[49,0,49,9],[50,0,51,9],[38,0,38,9],[39,0,40,9],[43,0,43,1],[43,2,43,9],[45,0,45,1],[46,0,46,1]]}
[{"$f":"+'Cover Page'!C39","v":2023}," Annual Reporting Performance Form 1"]
[]
[{"$f":"+'Cover Page'!B31","v":"Permit EPR/WP3438HZ"},null,null,null,null,"Operator: ","SUEZ Recycling and Recovery Suffolk Ltd"]
["Facility:",{"$f":"+'Cover Page'!B33:I33","v":"Suffolk Energy from Waste Facility"},null,null,null,"Form:","Performance 1"]
[]
["Reporting  Period from: ",null,null,"2023-01-01",null,"to:","2023-12-31"]
[]
[{"$f":"+A1","v":2023},"Annual Reporting of Waste Disposal and Recovery"]
["Waste Description",null,"Disposal Route(s)",null,"Disposal Tonnes",null,"Recovery Tonnes",null,"% / tonne of waste incinerated"]
["1) Hazardous Wastes"]
["APC Residues",null,null,null,{"$f":"'Operational Data'!G34","v":7385.9},null,null,null,{"$f":"IF((E11+G11)>0,(E11+G11)/'Operational Data'!$G$21, \"-\")","v":2.503717745765207E-2}]
["IBA",null,null,null,null,null,null,null,{"$f":"IF((E12+G12)>0,(E12+G12)/'Operational Data'!$G$21, \"-\")","v":"-"}]
[null,null,null,null,null,null,null,null,{"$f":"IF((E13+G13)>0,(E13+G13)/'Operational Data'!$G$21, \"-\")","v":"-"}]
[null,null,null,null,null,null,null,null,{"$f":"IF((E14+G14)>0,(E14+G14)/'Operational Data'!$G$21, \"-\")","v":"-"}]
["Total Hazardous Waste",null,null,null,{"$f":"SUM(E11:F14)","v":7385.9},null,{"$f":"SUM(G11:H14)","v":0},null,{"$f":"IF((E15+G15)>0,(E15+G15)/'Operational Data'!$G$21, \"-\")","v":2.503717745765207E-2}]
[]
["2) Non-Hazardous Wastes"]
["IBA",null,null,null,null,null,{"$f":"'Operational Data'!G35","v":52061.24},null,{"$f":"IF((E18+G18)>0,(E18+G18)/'Operational Data'!$G$21, \"-\")","v":0.17648038892286846}]
["Ferrous Metal",null,null,null,null,null,6500,null,{"$f":"IF((E19+G19)>0,(E19+G19)/'Operational Data'!$G$21, \"-\")","v":2.2034099226192944E-2}]
["Non-ferrous Metal",null,null,null,null,null,3053,null,{"$f":"IF((E20+G20)>0,(E20+G20)/'Operational Data'!$G$21, \"-\")","v":1.0349246913471855E-2}]
["Process Water",null,null,null,null,null,null,null,{"$f":"IF((E21+G21)>0,(E21+G21)/'Operational Data'!$G$21, \"-\")","v":"-"}]
[null,null,null,null,null,null,null,null,{"$f":"IF((E22+G22)>0,(E22+G22)/'Operational Data'!$G$21, \"-\")","v":"-"}]
["Total Non-Hazardous Waste",null,null,null,{"$f":"SUM(E18:F22)","v":0},null,{"$f":"SUM(G18:H22)","v":61614.239999999998},null,{"$f":"IF((E23+G23)>0,(E23+G23)/'Operational Data'!$G$21, \"-\")","v":0.20886373506253328}]
["TOTAL WASTE",null,null,null,{"$f":"+E23+E15","v":7385.9},null,{"$f":"+G23+G15","v":61614.239999999998},null,{"$f":"IF((E24+G24)>0,(E24+G24)/'Operational Data'!$G$21, \"-\")","v":0.23390091252018536}]
[]
["Operator’s comments :"]
[]
[]
[]
[]
[{"$f":"+A1","v":2023},"Annual Reporting of Water and Other Raw Material Usage"]
["Raw Material",null,null,null,"Usage",null,"Unit","Specific Usage",null,"Unit"]
["Mains Water",null,null,null,{"$f":"+'Operational Data'!G42","v":37611.959000000003},null,"m3",{"$f":"IF(E33>0,E33/'Operational Data'!$G$21,\"-\")","v":0.12749932872269243},null,"m3/te"]
["Total Water",null,null,null,{"$f":"+'Operational Data'!G43+'Operational Data'!G42","v":37611.959000000003},null,"m3",{"$f":"IF(E34>0,E34/'Operational Data'!$G$21,\"-\")","v":0.12749932872269243},null,"m3/te"]
["Urea / Ammonia",null,null,null,{"$f":"+'Operational Data'!G45","v":728331.60955199995},null,"kg",{"$f":"IF(E35>0,E35/'Operational Data'!$G$21,\"-\")","v":2.4689432237602436},null,"kg/te"]
["Activated Carbon",null,null,null,{"$f":"+'Operational Data'!G46","v":92222.194406509399},null,"kg",{"$f":"IF(E36>0,E36/'Operational Data'!$G$21,\"-\")","v":0.3126204588323514},null,"kg/te"]
["Lime / hydrated lime / Sodium Bicarb.",null,null,null,{"$f":"+'Operational Data'!G47","v":3048200.4997512},null,"kg",{"$f":"IF(E37>0,E37/'Operational Data'!$G$21,\"-\")","v":10.332977272745978},null,"kg/te"]
[]
["Operator’s comments :"]
[]
[]
[]
[{"$f":"+A31","v":2023},"Annual Reporting of other performance indicators "]
["Parameter",null,"Results by Line"]
[null,null,"A1","A2","A3","A4","A5",null,"Turbine 1","Turbine 2"]
["Operating hours for the year, hours",null,{"$f":"'Operational Data'!G53","v":8199.8580000000002},{"$f":"'Operational Data'!G54","v":8127.6689999999999},null,null,null,null,{"$f":"'Operational Data'!G59","v":8418.75}]
["Number of periods of abnormal operation, qty.",null,0,0]
["Cumulative hours of abnormal operation for this year, hours",null,0,0]
[]
["Operator’s comments :"]
[]
[]
[]
["Signed: ","Richard Watkins",null,null,null,null,"Date:","2024-03-18"]

{"sheet":"Energy Form 1","index":6,"n_rows":29,"n_cols":8,"rows_kept":29,"cut":false,"hidden":false,"merged":[[2,6,2,8],[4,1,4,4],[6,3,6,4],[6,6,6,7],[8,0,8,2],[8,3,8,4],[8,6,8,8],[9,0,9,2],[9,3,9,4],[9,6,9,8],[10,0,10,2],[10,3,10,4],[10,6,10,8],[11,0,11,2],[11,3,11,4],[11,6,11,8],[12,0,12,2],[12,3,12,4],[12,6,12,8],[13,0,13,2],[13,3,13,4],[13,6,13,8],[14,0,14,2],[14,3,14,4],[14,6,14,8],[15,0,15,2],[15,3,15,4],[15,6,15,8],[17,0,17,8],[18,0,24,8]]}
[{"$f":"+'Cover Page'!C39","v":2023}," Annual Reporting of Energy Usage/Export"]
[]
[{"$f":"+'Cover Page'!B31","v":"Permit EPR/WP3438HZ"},null,null,null,null,"Operator: ","SUEZ Recycling and Recovery Suffolk Ltd"]
[]
["Facility:",{"$f":"+'Cover Page'!B33:I33","v":"Suffolk Energy from Waste Facility"},null,null,null,"Form:","Energy 1"]
[]
["Reporting  Period from: ",null,null,{"$f":"+'Perf. Form 1'!D6:E6","v":"2023-01-01"},null,"to:",{"$f":"+'Perf. Form 1'!G6:H6","v":"2023-12-31"}]
[]
["Energy Source",null,null,"Energy Usage",null,"Unit","Specific Usage (KWh/tonne incinerated"]
["Electricity Produced",null,null,{"$f":"+'Operational Data'!G24","v":208225.80282479999},null,"MWh",{"$f":"+'Operational Data'!H24","v":705.85661552235842}]
["Electricity Imported   ",null,null,{"$f":"+'Operational Data'!G27","v":313.72166000000004},null,"MWh",{"$f":"+'Operational Data'!H27","v":1.0634729516686103}]
["Electricity Exported",null,null,{"$f":"+'Operational Data'!G25","v":184526.79300000001},null,"MWh",{"$f":"+'Operational Data'!H25","v":625.52025643894854}]
["Gas Oil",null,null,{"$f":"'Operational Data'!G48*0.85/1000","v":201.95640981917862},null,"tonnes",{"$f":"(D13*42800*1000*(1/3600))/'Operational Data'!G21","v":8.1391837665879869}]
["Steam/hot water exported",null,null,{"$f":"+'Operational Data'!G30","v":0},null,"GWh",{"$f":"+'Operational Data'!H30","v":"-"}]
[]
[]
[]
["Operator’s comments :"]
["Density value of 845 kg.m-3 used to convert gas oil litres to tonnes.\nNet Calorific Value (NCV) of 42,800 kJ.kg-1 used for gas oil"]
[]
[]
[]
[]
[]
[]
[]
[]
[]
["Signed: ","Richard Watkins",null,null,null,null,"Date:","2024-01-29"]

{"sheet":"Permit Compliance","index":7,"n_rows":29,"n_cols":12,"rows_kept":29,"cut":false,"hidden":false,"merged":[[28,4,28,8],[9,0,9,1],[9,2,9,4],[9,5,9,8],[10,0,10,1],[10,2,10,4],[10,5,10,8],[11,0,11,1],[11,2,11,4],[11,5,11,8],[12,0,12,1],[12,2,12,4],[12,5,12,8],[13,0,13,1],[13,2,13,4],[13,5,13,8],[15,2,15,4],[15,5,15,8],[7,0,7,1],[7,2,7,8],[8,0,8,1],[8,2,8,4],[8,5,8,8],[27,1,27,3],[27,4,27,6],[27,7,27,9],[20,1,20,3],[21,1,21,3],[20,4,21,6],[20,7,21,9],[26,1,26,3],[26,4,26,6],[26,7,26,9],[22,1,22,3],[22,4,22,6],[22,7,22,9],[8,11,15,11],[24,0,24,10],[17,0,17,10],[25,1,25,3],[25,4,25,6],[25,7,25,9],[18,1,18,3],[18,4,18,6],[18,7,18,9],[19,1,19,3],[19,4,19,6],[19,7,19,9],[14,0,14,1],[14,2,14,4],[14,5,14,8],[15,0,15,1]]}
[{"$f":"+'Cover Page'!$B$29","v":"Annual Performance Report 2023"},null,null,null,{"$f":"+'Cover Page'!$B$33","v":"Suffolk Energy from Waste Facility"}]
[]
["Summary of Permit Compliance"]
[]
["Compliance with permit limits for continuously monitored pollutants"]
[]
["The plant met its emission limits as shown in the table below:"]
["Substance",null,"Percentage time compliant during operationNote 1",null,null,null,null,null,null,null,null,"Notes:"]
[null,null,"Half-hourly limit",null,null,"Daily limit",null,null,null,null,null,"Note 1: Please report to 2 decimal places, i.e. xx.xx%\n\nNote 2: Please provide a brief summary of each notification or non-compliance in the table (rather than just referring to notifications that were sent to the Regulator), including stating the value of measured result for any ELV exceedances.   \n\n"]
["Particulates",null,1,null,null,1]
["Oxides of nitrogen",null,1,null,null,1]
["Sulphur dioxide",null,0.99990000000000001,null,null,1]
["Carbon monoxide",null,0.99980000000000002,null,null,1]
["Total organic carbon",null,0.99980000000000002,null,null,1]
["Hydrogen chloride",null,1,null,null,1]
["Ammonia",null,1,null,null,1]
[]
["Summary of any notifications or non-compliances under the permit"]
["Date","Summary of notification or non-compliance [including Line/Reference]Note 2",null,null,"Reason ",null,null,"Measures taken to prevent reoccurrence"]
["2023-02-06","Line 2 - half hourly average SO2 result above limit",null,null,"High SO2 in waste",null,null,"Review mixing procedure with crane ops and look at boiler fouling to improve temps. for optimum reagent reaction."]
["2023-02-07","Line 1 - TOC exceedances of Abnormal Operation limits for 5 x half hourly averages",null,null,"Plant trip with complete power loss- no combustion control available",null,null,"Improve labelling of electrical switch's, review scope of contractor electrical works and review additional plant protection measures."]
["2023-02-07","Line 1 - CO exceedances of Abnormal Operation limits for 6 x half hourly averages"]
["2023-04-03","IBA breach of the TOC limit (3.11% vs limit of 3.00%)",null,null,"Lab error, EA happy that no breach occurred.",null,null,"Samples retested and additional samples submitted for analysis. "]
[]
["Summary of any complaints received and actions to taken to resolve them."]
["Date","Summary of complaint [including Line/Reference]",null,null,"Reason *",null,null,"Measures taken to prevent reoccurrence"]
["2023-04-26","Odour complaint (waste smell) from a resident of Masons Drive",null,null,"Not identified, not substantiated.",null,null,"Offsite odour monitoring completed by site staff on a daily basis for 30 days following the complaint, no issues identified."]
["2023-09-13","Dust complaint - complaint from neighbour re yellow ash on vehicles in their car park.",null,null,"Not substantiated",null,null,"Complaint corresponded with widespread media coverage of Saharan dust deposits across the UK. Site derived dust would not be yellow."]
[null,null,null,null,"* including whether substantiated by the operator or the EA"]

{"sheet":"Improvements","index":8,"n_rows":38,"n_cols":5,"rows_kept":38,"cut":false,"hidden":false,"merged":[[37,0,37,8],[38,0,47,8],[4,0,4,8],[5,0,13,8],[15,0,15,8],[16,0,24,8],[26,0,26,8],[27,0,35,8]]}
[{"$f":"+'Cover Page'!$B$29","v":"Annual Performance Report 2023"},null,null,null,{"$f":"+'Cover Page'!$B$33","v":"Suffolk Energy from Waste Facility"}]
[]
["Summary of Plant Improvements"]
[]
["Summary of any efficiency improvements that have been completed within the year."]
["The CRH was returned to service after being isolated for a significant proportion of the previous year.  This resulted in an increase in the overall cycle efficiency compared to be previous year.\nOngoing combustion operation has resulted in a reduction in boiler excess air set point which will improve efficiency."]
[]
[]
[]
[]
[]
[]
[]
[]
[]
["Summary of any permit improvement conditions that have been completed within the year and the resulting environmental benefits."]
["Reports were submitted on the 22/09/2023 to provide mercury and dioxins/furans data as required by permit Improvement Conditions IC2 and IC3:\n\nIC2 “The operator shall submit a report to the Environment Agency on whether waste feed to the plant can be proven to have a low and stable mercury content. The report shall have regard to BAT 4 of the BAT conclusions, be based on historic mercury emissions monitoring data and have regard to the Environment Agency Mercury Monitoring Protocol.”\n\nIC3 “The operator shall submit a report to the Environment Agency on whether Dioxins emissions to air are stable. The report shall have regard to BAT 4 of the BAT conclusions, be based on historic dioxins emissions monitoring data and have regard to the Environment Agency Dioxins Monitoring Protocol.”"]
[]
[]
[]
[]
[]
[]
[]
[]
[]
["Summary of any changes to the plant or operating techniques which required a variation to the permit and a summary of the resulting environmental impact."]
["An Environment Agency initiated permit variation was issued 29/11/2023 to update the permit following a statutory review of the permits in the industry sector for incineration. The opportunity was also taken to consolidate the original permit and subsequent variations. The Industrial Emissions Directive (IED) came into force on 7th January 2014 with the requirement to implement all relevant Best Available Techniques (BAT) conclusions as described in the Commission Implementing Decision. The BAT conclusions for incineration were published on 03 December 2019 in the Official Journal of the European Union (L323) following a European Union wide review of BAT, implementing decision 2017/2117/EU of 21 November 2017."]
[]
[]
[]
[]
[]
[]
[]
[]
[]
["Summary of any other improvements made to the plant or planned to be made and a summary of the resulting environmental benefits."]

{"sheet":"Public Liasion","index":9,"n_rows":29,"n_cols":5,"rows_kept":29,"cut":false,"hidden":false,"merged":[[16,0,16,1],[16,2,16,8],[5,0,5,1],[5,2,5,8],[6,0,7,1],[6,2,7,8],[8,0,9,1],[8,2,9,8],[10,0,11,1],[10,2,11,8],[12,0,13,1],[12,2,13,8],[15,0,15,8],[17,0,18,1],[17,2,18,8],[19,0,20,1],[19,2,20,8],[21,0,22,1],[21,2,22,8],[23,0,24,1],[23,2,24,8],[25,0,26,1],[25,2,26,8],[28,0,28,8]]}
[{"$f":"+'Cover Page'!$B$29","v":"Annual Performance Report 2023"},null,null,null,{"$f":"+'Cover Page'!$B$33","v":"Suffolk Energy from Waste Facility"}]
[]
["Details of Public & Stakeholder Liaison"]
[]
["Summary of events held during the reporting year."]
["Date",null,"Description"]
["2023-05-01",null,"Suffolk Show.  The Suffolk show is a 2 day event where SUEZ join the wider Suffolk Waste Partnership to speak to members of the public about how their waste is treated."]
[]
["Throughout the year",null,"60 adult tours and 46 school/community group tours totalling 1,797 visitors.\n16 children's outreach events \n6 careers events \n8 outreach talks for adults "]
[]
["2023-07-01",null,"Latitude festival - 3 day event where SUEZ join the wider Suffolk Waste Partnership to speak to members of the public about how their waste is treated.\nSuffolk Youth Climate conference\n1 day event where SUEZ joined other companies and community groups on the 'Green Street' to education the young people on how their waste is treated. "]
[]
["2023-10-01",null,"Go Green Go Wild - 1 day event held by Mid Suffolk District Council during half term. SUEZ took their energy bike and engaged with young people and their parents about how their waste is treated"]
[]
[]
["List of events planned for next year"]
["Date",null,"Description"]
["2024-05-01",null,"Suffolk Show"]
[]
["Throughout the year",null,"Adult tours and school/community group tours "]
[]
["Throughout the year",null,"Outreach projects "]
[]
["Throughout the year",null,"Careers events"]
[]
[]
[]
[]
["If you wish to be involved in the public liaison programme, please contact Siobhan.o'dell@suez.com"]

{"sheet":"CO2 N2O","index":10,"n_rows":23,"n_cols":6,"rows_kept":23,"cut":false,"hidden":false,"merged":[[20,2,20,3],[23,1,23,3],[16,2,16,3],[4,0,4,3],[9,0,9,3],[17,0,17,3],[13,0,13,3],[12,0,12,1],[8,2,8,3],[11,2,11,3]]}
[{"$f":"+'Cover Page'!$B$29","v":"Annual Performance Report 2023"},null,{"$f":"+'Cover Page'!$B$33","v":"Suffolk Energy from Waste Facility"}]
[]
["Carbon dioxide emissions and biogenic content of waste inputs",null,null,null,null,"Notes:"]
[]
["Carbon dioxide emissions (all types of plant)"]
[null,"Annual mass of carbon dioxide released","tonnes ",286190.3574804198]
[null,"Annual mass of carbon dioxide released per tonne of waste burned","t CO2 / t waste ",{"$f":"D6/'Operational Data'!G21","v":0.97014565143126152}]
[null,"Annual mass of carbon dioxide released per MWh of energy exported","t CO2 / MWh export ",{"$f":"D6/'Operational Data'!G25","v":1.5509420221724646}]
[null,"Description of how annual carbon dioxide mass emission has been calculated. \nSee Note 1","CEMs CO2, O2 and Flow Measurements",null,null,"Note 1: Where available, data from CO2 CEMS should be used. \nOtherwise, only where no CEMS data is available, a suitable emissions factor should be used based on the tonnage of waste burned e.g.0.942 tCO2/t waste as per Tolvik report 2022, or other justified emissions factor  - refer to embedded Environment Agency guidance note above or updated version for suitable descriptive text."]
["Nitrous oxide emissions (only plants which use ammonia or urea to abate NOx emissions)"]
[null,"Annual mass emissions of nitrous oxide","tonnes N2O",7.3479999999999999]
[null,"Description of how annual nitrous oxide mass emission has been calculated\nSee Note 2","Periodic monitoring as CEMs not installed until late 2023.  Flow from CEMs.",null,null,"Note 2: Where available, data from N2O CEMS should be used. \nIf no CEMS data is available, from periodic monitoring. Otherwise, a suitable emissions factor should be used based on the tonnage of waste burned e.g. 0.0981 kgN20/t waste as per 2021 Pollution Inventory data for plants with urea-based SNCR - refer to embedded Environment Agency guidance note above or updated version for suitable descriptive text."]
["Total annual carbon dioxide and nitrous oxide emissions. \nSee Note 3. ",null,"tonnes CO2e",{"$f":"D11*298+D6","v":288380.06148041983},null,"Note 3: Total annual carbon dioxide and nitrous oxide emissions reported as carbon dioxide equivalent where 1 tonne nitrous oxide is equivalent to 298 tonne carbon dioxide"]
["Biogenic CO2 emissions (See Note 4)",null,null,null,null,"Note 4: Only plants combusting residual municipal waste, refuse derived fuel or solid recovered fuel"]
[null,"Percentage of total carbon dioxide emissions arising from biogenic waste","%",0.51980000000000004]
[null,"No. of measurements undertaken","Number",0]
[null,"Description of how percentage biogenic carbon dioxide emissions have been measured or calculated.\nSee Note 5","Based on annual waste sampling and analysis to determine biogenic fraction",null,null,"Note 5: Examples include direct measurement via C14 method or BIOMA software - refer to embedded Environment Agency guidance note above or updated version for suitable descriptive text, quoting standards where relevant. \nOtherwise, as an approximation (and in lieu of any more accurate metrics which may be developed in future), the measured or estimated biogenic fraction by net calorific value can be assumed to be the same as the biogenic CO2 fraction of the total CO2 emissions from the plant. "]
["Biogenic fraction of waste feedstock (See Note 4)"]
[null,"Yearly average biogenic percentage of the waste by net calorific value (NCV)","%",0.51980000000000004]
[null,"If sampling undertaken, no. of samples used to ascertain average biogenic % above","Number",1]
[null,"Description of how biogenic percentage (by NCV) has been calculated or estimated. \nSee Note 6","Based on annual waste sampling and analysis to determine biogenic fraction",null,null,"Note 6: Where available, data from waste sampling should be used; otherwise, an estimated figure with justification can be used, or a figure assumed on the basis of a national average e.g. 2017 WRAP data for residual waste of 51.8% biogenic energy content - refer to embedded Environment Agency guidance note above or updated version for suitable descriptive text, quoting standards where relevant. "]
[]
[null,"Comments:"]

{"sheet":"Residue Quality ","index":11,"n_rows":34,"n_cols":6,"rows_kept":34,"cut":false,"hidden":false,"merged":[[16,0,17,1],[16,2,17,6],[12,0,12,6],[13,0,13,1],[13,2,13,6],[5,0,6,6],[7,0,8,6],[9,0,10,6],[14,0,15,1],[14,2,15,6],[18,0,19,1],[18,2,19,6],[20,0,21,1],[20,2,21,6],[29,3,29,4],[25,2,26,2],[26,3,26,4],[26,5,26,6],[25,3,25,6],[24,0,24,6],[33,0,38,6],[30,3,30,4],[32,0,32,6],[25,0,26,1],[27,0,27,1],[28,0,28,1],[29,0,29,1],[30,0,30,1],[27,3,27,4],[28,3,28,4],[27,5,27,6],[28,5,28,6],[29,5,29,6],[30,5,30,6]]}
[{"$f":"+'Cover Page'!$B$29","v":"Annual Performance Report 2023"},null,null,null,{"$f":"+'Cover Page'!$B$33","v":"Suffolk Energy from Waste Facility"}]
[]
["Residue Quality Monitoring Requirements"]
[]
["Summary of monitoring undertaken and compliance"]
["Routine samples for quarterly IBA analysis were taken on the 16/01/2023, 03/04/2023, 11/07/2023 and the 23/10/2023."]
[]
[]
[]
[]
[]
[]
["Commentary on any specific events"]
["Date & Event",null,"Description"]
["2023-04-03",null,"The IBA sample taken on this date returned a non-compliant TOC result of 3.11%, however there was an LOI result provided for the sample at 3.4%. The TOC was retested on a further sample taken the same date as the original and this returned a compliant result of 2.1%. An additional sample was submitted to the lab dated 31/03/2023 (this was a retained sample held on site) and this also returned a compliant TOC result of 1.91%. The uncertainty of measurement associated with the result from 03/04/2023 potentially provides a compliant result and based on subsequent analysis it is likely that the original result for this sample was erroneous."]
[]
[]
[]
[]
[]
[]
[]
[]
[]
["Residue Quality Monitoring Results"]
["Parameter (unit) ",null,"Limit","Normal Operation "]
[null,null,null,"Bottom ash  ",null,"APC Residues"]
["Loss on Ignition (average %)",null,"<5%",3.4]
["Total Organic Carbon (average %)",null,"<3%",1.87]
["No. of Assessments Undertaken",null,"---",6,null,4]
["No. of Hazardous Results",null,"---",0]
[]
["Comments :"]
["16/01/2023 TOC = 2.03%\n31/03/2023 TOC = 1.91%\n03/04/2023 TOC = 3.11% (retest result 2.1%)\n11/07/2023 TOC = 0.17%\n23/10/203 TOC = 2.03%"]

{"sheet":"Water","index":12,"n_rows":24,"n_cols":9,"rows_kept":24,"cut":false,"hidden":false,"merged":[[5,0,6,8],[7,0,8,8],[9,0,10,8],[12,0,12,8],[13,0,13,1],[13,2,13,8],[21,0,21,8],[22,0,22,2],[22,3,22,4],[14,0,15,1],[14,2,15,8],[16,0,17,1],[16,2,17,8],[18,0,19,1],[18,2,19,8],[23,0,23,2],[23,3,23,4],[24,0,24,2],[24,3,24,4],[25,0,25,2],[25,3,25,4],[29,0,29,2],[29,3,29,4],[26,0,26,2],[26,3,26,4],[27,0,27,2],[27,3,27,4],[28,0,28,2],[28,3,28,4]]}
[{"$f":"+'Cover Page'!$B$29","v":"Annual Performance Report 2023"},null,null,null,{"$f":"+'Cover Page'!$B$33","v":"Suffolk Energy from Waste Facility"}]
[]
["Emissions to Water"]
[]
["Summary of monitoring undertaken and compliance"]
["There are no discharges to water regulated by the permit. The discharge point S1 has a volume limit of 24m3 per day as detailed in table S3.4. Compliance with the discharge volume limit is reported to the Environment Agency on a quarterly basis in line with permit requirements."]
[]
[]
[]
[]
[]
[]
["Commentary on any specific events"]
["Date & Event",null,"Description"]
[]
[]
[]
[]
[]
[]
[]
["Emissions to Water / Sewer"]
["Parameter",null,null,"Monitoring Frequency",null,"Limit","Target","Max.","Average"]
["Water Volume (m3/day) to Sewer",null,null,"Continuous",null,"24 m3/day",0,20,4.5999999999999996]

{"sheet":"Air (periodic)","index":13,"n_rows":39,"n_cols":13,"rows_kept":39,"cut":false,"hidden":false,"merged":[[5,10,8,13],[9,10,11,13],[8,0,8,9],[5,0,6,9],[11,0,11,1],[12,0,12,1],[11,3,11,4],[12,3,12,4],[9,0,10,1],[9,5,9,9],[9,3,10,4],[9,2,10,2],[16,0,16,1],[17,0,17,1],[18,0,18,1],[13,0,13,1],[14,0,14,1],[15,0,15,1],[39,0,40,9],[25,0,25,1],[26,0,26,1],[22,0,22,1],[23,0,23,1],[37,0,37,1],[27,0,27,1],[28,0,28,1],[29,0,29,1],[30,0,30,1],[31,0,31,1],[32,0,32,1],[37,3,37,4],[29,3,29,4],[30,3,30,4],[36,3,36,4],[38,0,38,9],[19,0,19,1],[20,0,20,1],[21,0,21,1],[34,3,34,4],[35,3,35,4],[33,0,33,1],[34,0,34,1],[35,0,35,1],[36,0,36,1],[24,0,24,1],[32,3,32,4],[27,3,27,4],[33,3,33,4],[19,3,19,4],[20,3,20,4],[21,3,21,4],[22,3,22,4],[23,3,23,4],[24,3,24,4],[31,3,31,4],[25,3,25,4],[26,3,26,4],[28,3,28,4],[13,10,14,12],[15,10,16,10],[15,11,16,11],[15,12,16,12],[18,3,18,4],[13,3,13,4],[14,3,14,4],[15,3,15,4],[16,3,16,4],[17,3,17,4]]}
[{"$f":"+'Cover Page'!$B$29","v":"Annual Performance Report 2023"},null,null,null,{"$f":"+'Cover Page'!$B$33","v":"Suffolk Energy from Waste Facility"}]
[]
["Emissions to Air (periodically monitored)"]
[]
["Summary of monitoring undertaken, standards used and compliance",null,null,null,null,null,null,null,null,null,"Notes:"]
["Monitoring undertaken in accordance with the standards outlined in Table S3.1 of the Environmental Permit.",null,null,null,null,null,null,null,null,null,"Template may require adjustment for any bespoke monitoring requirements of permit - please also check that all default ELV values, reference periods and the stated oxygen reference value match those for your plant, and edit if necessary!"]
[]
[]
["Results of emissions to air that are periodically monitored - oxygen reference 11% "]
["Substance",null,"Ref. Period","Emission Limit Value*",null,"Average",null,null,null,null,"User to add additional tables as necessary, depending on whether quarterly or bi-annual reporting is required for the compliance year"]
[null,null,null,null,null,"A1","A2","A3","A4","A5"]
["Hydrogen fluoride",null,"1 hr","2 mg/m3",null,0.03,0.109]
["Cd and Th and their compounds",null,"0.5-8hrs","0.05 mg/m3",null,1.3500000000000001E-3,1.25E-3]
["Hg and its compounds",null,"0.5-8hrs","0.05 mg/m3",null,7.7500000000000008E-4,1.5100000000000001E-3,null,null,null,"* Denotes limits that were in force until 2 December 2023; from 3 December 2023 the following new limits applied (those not listed remained unchanged):"]
["Sb, As, Pb, Cr, Co, Cu, Mn, Ni, V and their compounds",null,"0.5-8hrs","0.5 mg/m3",null,1.35E-2,3.1850000000000003E-2]
["Dioxins & Furans (I-TEQ)",null,"6-8hrs","0.1 ng/m3",null,1.8E-3,2.3E-3,null,null,null,"Substance","Reference Period","Emission Limit Value"]
["PCBs (WHO-TEQ Humans / Mammals)",null,"6-8hrs","None set ng/m3",null,1.05E-4,7.2999999999999999E-5]
["PCBs (WHO-TEQ Fish)",null,"6-8hrs","None set ng/m3",null,5.3499999999999996E-6,4.0999999999999997E-6,null,null,null,"Hydrogen fluoride","Average of three consecutive measurements of at least 30 minutes each","1 mg/m3"]
["PCBs (WHO-TEQ Birds)",null,"6-8hrs","None set ng/m3",null,3.6999999999999999E-4,4.8000000000000001E-4,null,null,null,"Cd and Th and their compounds","Average of three consecutive measurements of at least 30 minutes each","0.02 mg/m3"]
["Dioxins & Furans (WHO-TEQ Humans / Mammals)",null,"6-8hrs","None set ng/m3",null,1.7499999999999998E-3,2.5999999999999999E-3,null,null,null,"Hg and its compounds","Average of three consecutive measurements of at least 30 minutes each","0.02 mg/m3"]
["Dioxins & Furans (WHO-TEQ Fish)",null,"6-8hrs","None set ng/m3",null,1.8500000000000001E-3,2.65E-3,null,null,null,"Sb, As, Pb, Cr, Co, Cu, Mn, Ni, V and their compounds","Average of three consecutive measurements of at least 30 minutes each","0.3 mg/m3"]
["Dioxins & Furans (WHO-TEQ Birds)",null,"6-8hrs","None set ng/m3",null,2.7499999999999998E-3,3.3999999999999998E-3,null,null,null,"Dioxins & Furans (I-TEQ)","6-8hrs","0.06 ng/m3"]
["Anthanthrene",null,"6-8hrs","None set µg/m3",null,1.2000000000000001E-3,1.3500000000000001E-3]
["Benzo(a)anthracene",null,"6-8hrs","None set µg/m3",null,2.1000000000000003E-3,2.0499999999999997E-3]
["Benzo(a)pyrene",null,"6-8hrs","None set µg/m3",null,1.2000000000000001E-3,1.3500000000000001E-3]
["Benzo(b)fluoranthene",null,"6-8hrs","None set µg/m3",null,1.2000000000000001E-3,1.3500000000000001E-3]
["Benzo(b)naptho(2,1-d) thiophene",null,"6-8hrs","None set µg/m3",null,1.5499999999999999E-3,1.65E-3]
["Benzo(c)phenanthrene",null,"6-8hrs","None set µg/m3",null,1.2000000000000001E-3,1.3500000000000001E-3]
["Benzo(ghi)perylene",null,"6-8hrs","None set µg/m3",null,1.2000000000000001E-3,1.3500000000000001E-3]
["Benzo(k)fluoranthene",null,"6-8hrs","None set µg/m3",null,1.2000000000000001E-3,1.3500000000000001E-3]
["Cholanthrene",null,"6-8hrs","None set µg/m3",null,1.2000000000000001E-3,1.3500000000000001E-3]
["Chrysene",null,"6-8hrs","None set µg/m3",null,2.15E-3,2.0999999999999999E-3]
["Cyclopenta(cd)pyrene",null,"6-8hrs","None set µg/m3",null,1.2000000000000001E-3,1.3500000000000001E-3]
["Dibenzo(ai)pyrene",null,"6-8hrs","None set µg/m3",null,1.2000000000000001E-3,1.3500000000000001E-3]
["Dibenzo(ah)anthracene",null,"6-8hrs","None set µg/m3",null,1.2000000000000001E-3,1.3500000000000001E-3]
["Fluoranthene",null,"6-8hrs","None set µg/m3",null,4.0299999999999996E-2,3.5549999999999998E-2]
["Indeno(123-cd) pyrene",null,"6-8hrs","None set µg/m3",null,1.2000000000000001E-3,1.3500000000000001E-3]
["Naphthalene",null,"6-8hrs","None set µg/m3",null,0.121,0.1225]
["Comments :"]

{"sheet":"Air (CEMS)","index":14,"n_rows":29,"n_cols":16,"rows_kept":29,"cut":false,"hidden":false,"merged":[[14,13,15,13],[14,14,15,14],[14,15,15,15],[12,13,13,15],[26,0,26,12],[15,0,16,0],[17,0,18,0],[19,0,20,0],[21,0,22,0],[23,0,24,0],[28,0,29,12],[13,0,14,0],[5,0,6,12],[7,0,8,12],[10,0,10,12],[11,0,12,0],[11,2,12,2],[11,1,12,1],[11,3,11,4],[11,5,11,6],[11,7,11,8],[11,9,11,10],[11,11,11,12]]}
[{"$f":"+'Cover Page'!$B$29","v":"Annual Performance Report 2023"},null,null,null,null,null,null,null,{"$f":"+'Cover Page'!$B$33","v":"Suffolk Energy from Waste Facility"}]
[]
["Emissions to Air (continuously monitored)"]
[null,null,null,null,null,null,null,null,null,null,null,null,null,"Notes:"]
["Summary of monitoring undertaken, standards used and compliance",null,null,null,null,null,null,null,null,null,null,null,null,"Template may require adjustment for any bespoke monitoring requirements of permit"]
["The CEMS set up comprises a multigas analyser, FID analyser and oxygen probe for extractive sampling where flue gases are drawn continuously via a heated line to the analysers in the CEMS room for each incineration line. In situ sampling i.e. where the probes are installed directly into the flue gas flow in the stack is for the dust probes only. The set up for the duty analysers is mirrored by the standby analysers. The standby analysers can be switched between incineration Lines 1 and 2 as required. Continuous monitoring is provided by the CEMS as required by the permit. The CEMS are installed in accordance with EN14181 and relevant Environment Agency guidance.",null,null,null,null,null,null,null,null,null,null,null,null,"Please check that all default ELV values match those for your plant and edit if necessary!"]
[null,null,null,null,null,null,null,null,null,null,null,null,null,"Report to 1 decimal place"]
[]
[]
[]
["Results of emissions to air that are continuously monitored (maximum and average values for each line) - oxygen reference 11%"]
["Substance","Reference Period","Emission Limit Value","A1",null,"A2",null,"A3",null,"A4",null,"A5"]
[null,null,null,"Max.","Avg.","Max.","Avg.","Max.","Avg.","Max.","Avg.","Max.","Avg.","** Denotes limits that were in force until 2 December 2023; from 3 December 2023 the following new limits applied (those not listed remained unchanged):"]
["Oxides of nitrogen","Daily mean","200 mg/m3 ",{"$f":"NOx!$O$19","v":183.5},{"$f":"NOx!$N$19","v":172.89668763846461},{"$f":"NOx!$O$34","v":188.6},{"$f":"NOx!N34","v":174.96100676958682}]
[null,"½ hourly mean","400 mg/m3 ",{"$f":"NOx!$M$19","v":319.3},{"$f":"NOx!$L$19","v":172.89668763846461},{"$f":"NOx!$M$34","v":268.10000000000002},{"$f":"NOx!L34","v":174.96100676958682},null,null,null,null,null,null,"Substance","Reference Period","Emission Limit Value"]
["Particulates","Daily mean","10 mg/m3",{"$f":"Particulates!$O$19","v":1},{"$f":"Particulates!$N$19","v":0.45992240765043868},{"$f":"Particulates!$O$34","v":2.6},{"$f":"Particulates!N34","v":0.89855094324782891}]
[null,"½ hourly mean","30 mg/m3 ",{"$f":"Particulates!$M$19","v":2.9},{"$f":"Particulates!$L$19","v":0.45992240765043868},{"$f":"Particulates!$M$34","v":5},{"$f":"Particulates!L34","v":0.89855094324782891},null,null,null,null,null,null,"Oxides of nitrogen","Daily mean","180 mg/m3 "]
["Total Organic Carbon ","Daily mean","10 mg/m3 ",{"$f":"TOC!$O$19","v":0.8},{"$f":"TOC!$N$19","v":0.48638676889789245},{"$f":"TOC!$O$34","v":1.7},{"$f":"TOC!N34","v":0.4776564813878495},null,null,null,null,null,null,"Particulates","Daily mean","5 mg/m3 "]
[null,"½ hourly mean","20 mg/m3 ",{"$f":"TOC!$M$19","v":189.1},{"$f":"TOC!$L$19","v":0.48638676889789245},{"$f":"TOC!$M$34","v":19.399999999999999},{"$f":"TOC!L34","v":0.4776564813878495},null,null,null,null,null,null,"Hydrogen chloride","Daily mean","8 mg/m3 "]
["Hydrogen chloride ","Daily mean","10 mg/m3 ",{"$f":"HCl!$O$19","v":6.75},{"$f":"HCl!$N$19","v":2.5978569390997088},{"$f":"HCl!$O$34","v":6.71},{"$f":"HCl!N34","v":2.4013089482140653},null,null,null,null,null,null,"Sulphur dioxide","Daily mean","40 mg/m3 "]
[null,"½ hourly mean","60 mg/m3 ",{"$f":"HCl!$M$19","v":26},{"$f":"HCl!$L$19","v":2.5978569390997088},{"$f":"HCl!$M$34","v":26.38},{"$f":"HCl!L34","v":2.4013089482140653},null,null,null,null,null,null,"Ammonia","Daily mean","15 mg/m3 "]
["Sulphur dioxide","Daily mean","50 mg/m3 ",{"$f":"'SO2'!$O$19","v":45.4},{"$f":"'SO2'!$N$19","v":32.142541757309559},{"$f":"'SO2'!$O$34","v":179.9},{"$f":"'SO2'!N34","v":32.492181026055889}]
[null,"½ hourly mean","200 mg/m3 ",{"$f":"'SO2'!$M$19","v":162.1},{"$f":"'SO2'!$L$19","v":32.142541757309559},{"$f":"'SO2'!$M$34","v":266.3},{"$f":"'SO2'!L34","v":32.492181026055889}]
["Carbon monoxide ","Daily mean","50 mg/m3 ",{"$f":"'CO 95% 10 min'!Q16","v":12.5},{"$f":"'CO 95% 10 min'!P16","v":4.4612903225806457},{"$f":"'CO 95% 10 min'!Q31","v":8.3000000000000007},{"$f":"'CO 95% 10 min'!P31","v":2.9161290322580649}]
[null,"95%ile 10-min avg","150 mg/m3",{"$f":"'CO 95% 10 min'!M16","v":7.5865030288696289},{"$f":"'CO 95% 10 min'!N16","v":4.4612903225806457},{"$f":"'CO 95% 10 min'!M31","v":14.183146476745605},{"$f":"'CO 95% 10 min'!P31","v":2.9161290322580649}]
[" Ammonia","Daily mean","No limit set until 03/12/23"]
["\n"]
["Comments :"]
["Reporting of ammonia (NH3) concentrations by the CEMS was not required by the permit until 03/12/2023."]

{"sheet":"HCl","index":15,"n_rows":79,"n_cols":17,"rows_kept":79,"cut":false,"hidden":false,"merged":[[12,16,15,18],[51,9,63,9],[66,9,78,9],[4,9,4,14],[4,1,4,3],[4,4,4,6],[48,0,51,6],[47,0,47,6],[6,9,18,9],[21,9,33,9],[36,9,48,9],[3,16,7,18],[9,16,11,18],[18,4,18,6]]}
[{"$f":"+'Cover Page'!$B$29","v":"Annual Performance Report 2023"},null,null,null,{"$f":"+'Cover Page'!$B$33","v":"Suffolk Energy from Waste Facility"}]
[]
["Monitoring of Hydrogen Chloride emissions",null,null,"Whole Installation",null,null,"See  Notes in Cell Q3",null,null,{"$f":"+A3","v":"Monitoring of Hydrogen Chloride emissions"},null,null,null,"Per Combustion Line",null,null,"Notes:"]
[null,null,null,null,null,null,null,null,null,null,null,null,null,null,null,null,"User to add logic to complete Whole installation, Table A5:G18. From the data in Per Combustion Line, Table J6:O79, subject to No. of lines installed"]
["mg/Nm3","1/2 Hourly Reference Periods",null,null,"Daily Reference Periods"]
[{"$f":"+'Cover Page'!C39","v":2023},"1/2 hourly HCl ELV","Monthly 1/2 hourly mean","Highest 1/2 hourly maximum","Daily HCl ELV*","Monthly daily mean","Highest daily maximum",null,null,{"$f":"+A6","v":2023},"mg/Nm3","Monthly 1/2 hourly mean","Monthly 1/2 hourly maximum","Monthly daily mean","Monthly daily maximum"]
["Jan",60,{"$f":"+AVERAGE(L7,L22)","v":1.9543548387096772},{"$f":"MAX(M7,M22)","v":5.27},10,{"$f":"AVERAGE(N7,N22)","v":1.9543548387096772},{"$f":"MAX(O7,O22)","v":3.47},null,null,"A1","Jan",2.1154838709677417,3.99,2.1154838709677417,2.84]
["Feb",60,{"$f":"+AVERAGE(L8,L23)","v":1.3364307692307693},{"$f":"MAX(M8,M23)","v":26.38},10,{"$f":"AVERAGE(N8,N23)","v":1.3364307692307693},{"$f":"MAX(O8,O23)","v":2.1800000000000002},null,null,null,"Feb",1.6184615384615386,3.87,1.6184615384615386,2.1800000000000002]
["Mar",60,1.2433870967741933,{"$f":"MAX(M9,M24)","v":4.16},10,1.2433870967741933,2.15,null,null,null,"Mar",1.5499999999999996,2.74,1.5499999999999996,2.15,null,"Whole Installation table A5:G18:"]
["Apr",60,1.4209090909090909,{"$f":"MAX(M10,M25)","v":6.1},10,1.4209090909090909,3.2,null,null,null,"Apr",1.8418181818181816,6.1,1.8418181818181816,3.2,null,"Mean: for 1/2 hourly and daily periods calculate mean of values across all operational combustion lines for the month"]
["May",60,1.805870279146141,{"$f":"MAX(M11,M26)","v":11.41},10,1.805870279146141,5.29,null,null,null,"May",2.5738095238095235,11.41,2.5738095238095235,5.29]
["Jun",60,2.061833333333333,7.04,10,2.061833333333333,4.87,null,null,null,"Jun",2.3969999999999994,7.04,2.3969999999999994,4.87]
["Jul",60,2.8723804226918799,10.210000000000001,10,2.8723804226918799,6.33,null,null,null,"Jul",2.8837931034482756,7.6,2.8837931034482756,5.5,null,"Maximum: for 1/2 hourly and daily periods use the highest value across all operational combustion lines for the month"]
["Aug",60,4.9632258064516126,24.35,10,4.9632258064516126,6.71,null,null,null,"Aug",4.5348387096774188,18.850000000000001,4.5348387096774188,6.42]
["Sep",60,5.0036666666666658,26,10,5.0036666666666658,6.75,null,null,null,"Sep",4.6899999999999995,26,4.6899999999999995,6.75]
["Oct",60,3.7932258064516136,12.84,10,3.7932258064516136,6.01,null,null,null,"Oct",3.2035483870967751,9.99,3.2035483870967751,5.16]
["Nov",60,1.6939047619047622,8.36,10,1.6939047619047622,3.56,null,null,null,"Nov",1.8971428571428572,4.45,1.8971428571428572,3.13]
["Dec",60,1.8458064516129031,6.9,8,1.8458064516129031,3.98,null,null,null,"Dec",1.8683870967741936,5.79,1.8683870967741936,3.15]
[null,null,null,null,"* ELV reduced to 8 mg/Nm3 on 3 December 2023",null,null,null,null,null,"Annual",{"$f":"AVERAGE(L7:L18)","v":2.5978569390997088},{"$f":"MAX(M7:M18)","v":26},{"$f":"AVERAGE(N7:N18)","v":2.5978569390997088},{"$f":"MAX(O7:O18)","v":6.75}]
[]
[null,null,null,null,null,null,null,null,null,{"$f":"+A6","v":2023},"mg/Nm3","Monthly 1/2 hourly mean","Monthly 1/2 hourly maximum","Monthly daily mean","Monthly daily maximum"]
[null,null,null,null,null,null,null,null,null,"A2","Jan",1.7932258064516129,5.27,1.7932258064516129,3.47]
[null,null,null,null,null,null,null,null,null,null,"Feb",1.0543999999999998,26.38,1.0543999999999998,1.81]
[null,null,null,null,null,null,null,null,null,null,"Mar",0.93677419354838698,4.16,0.93677419354838698,1.51]
[null,null,null,null,null,null,null,null,null,null,"Apr",1,2.25,1,1.6]
[null,null,null,null,null,null,null,null,null,null,"May",1.0379310344827586,5.43,1.0379310344827586,3.09]
[null,null,null,null,null,null,null,null,null,null,"Jun",1.7266666666666666,6.35,1.7266666666666666,3.74]
[null,null,null,null,null,null,null,null,null,null,"Jul",2.8609677419354842,10.210000000000001,2.8609677419354842,6.33]
[null,null,null,null,null,null,null,null,null,null,"Aug",5.3916129032258064,24.35,5.3916129032258064,6.71]
[null,null,null,null,null,null,null,null,null,null,"Sep",5.317333333333333,16.690000000000001,5.317333333333333,6.31]
[null,null,null,null,null,null,null,null,null,null,"Oct",4.3829032258064515,12.84,4.3829032258064515,6.01]
[null,null,null,null,null,null,null,null,null,null,"Nov",1.490666666666667,8.36,1.490666666666667,3.56]
[null,null,null,null,null,null,null,null,null,null,"Dec",1.8232258064516127,6.9,1.8232258064516127,3.98]
[null,null,null,null,null,null,null,null,null,null,"Annual",{"$f":"AVERAGE(L22:L33)","v":2.4013089482140653},{"$f":"MAX(M22:M33)","v":26.38},{"$f":"AVERAGE(N22:N33)","v":2.4013089482140653},{"$f":"MAX(O22:O33)","v":6.71}]
[]
[null,null,null,null,null,null,null,null,null,{"$f":"+A6","v":2023},"mg/Nm3","Monthly 1/2 hourly mean","Monthly 1/2 hourly maximum","Monthly daily mean","Monthly daily maximum"]
[null,null,null,null,null,null,null,null,null,"A3","Jan"]
[null,null,null,null,null,null,null,null,null,null,"Feb"]
[null,null,null,null,null,null,null,null,null,null,"Mar"]
[null,null,null,null,null,null,null,null,null,null,"Apr"]
[null,null,null,null,null,null,null,null,null,null,"May"]
[null,null,null,null,null,null,null,null,null,null,"Jun"]
[null,null,null,null,null,null,null,null,null,null,"Jul"]
[null,null,null,null,null,null,null,null,null,null,"Aug"]
[null,null,null,null,null,null,null,null,null,null,"Sep"]
[null,null,null,null,null,null,null,null,null,null,"Oct"]
[null,null,null,null,null,null,null,null,null,null,"Nov"]
["Comments :",null,null,null,null,null,null,null,null,null,"Dec"]
[null,null,null,null,null,null,null,null,null,null,"Annual",{"$f":"AVERAGE(L37:L48)","v":{"$error":"#DIV/0!"}},{"$f":"MAX(M37:M48)","v":0},{"$f":"AVERAGE(N37:N48)","v":{"$error":"#DIV/0!"}},{"$f":"MAX(O37:O48)","v":0}]
[]
[null,null,null,null,null,null,null,null,null,{"$f":"+A6","v":2023},"mg/Nm3","Monthly 1/2 hourly mean","Monthly 1/2 hourly maximum","Monthly daily mean","Monthly daily maximum"]
[null,null,null,null,null,null,null,null,null,"A4","Jan"]
[null,null,null,null,null,null,null,null,null,null,"Feb"]
[null,null,null,null,null,null,null,null,null,null,"Mar"]
[null,null,null,null,null,null,null,null,null,null,"Apr"]
[null,null,null,null,null,null,null,null,null,null,"May"]
[null,null,null,null,null,null,null,null,null,null,"Jun"]
[null,null,null,null,null,null,null,null,null,null,"Jul"]
[null,null,null,null,null,null,null,null,null,null,"Aug"]
[null,null,null,null,null,null,null,null,null,null,"Sep"]
[null,null,null,null,null,null,null,null,null,null,"Oct"]
[null,null,null,null,null,null,null,null,null,null,"Nov"]
[null,null,null,null,null,null,null,null,null,null,"Dec"]
[null,null,null,null,null,null,null,null,null,null,"Annual",{"$f":"AVERAGE(L52:L63)","v":{"$error":"#DIV/0!"}},{"$f":"MAX(M52:M63)","v":0},{"$f":"AVERAGE(N52:N63)","v":{"$error":"#DIV/0!"}},{"$f":"MAX(O52:O63)","v":0}]
[]
[null,null,null,null,null,null,null,null,null,{"$f":"+A6","v":2023},"mg/Nm3","Monthly 1/2 hourly mean","Monthly 1/2 hourly maximum","Monthly daily mean","Monthly daily maximum"]
[null,null,null,null,null,null,null,null,null,"A5","Jan"]
[null,null,null,null,null,null,null,null,null,null,"Feb"]
[null,null,null,null,null,null,null,null,null,null,"Mar"]
[null,null,null,null,null,null,null,null,null,null,"Apr"]
[null,null,null,null,null,null,null,null,null,null,"May"]
[null,null,null,null,null,null,null,null,null,null,"Jun"]
[null,null,null,null,null,null,null,null,null,null,"Jul"]
[null,null,null,null,null,null,null,null,null,null,"Aug"]
[null,null,null,null,null,null,null,null,null,null,"Sep"]
[null,null,null,null,null,null,null,null,null,null,"Oct"]
[null,null,null,null,null,null,null,null,null,null,"Nov"]
[null,null,null,null,null,null,null,null,null,null,"Dec"]
[null,null,null,null,null,null,null,null,null,null,"Annual",{"$f":"AVERAGE(L67:L78)","v":{"$error":"#DIV/0!"}},{"$f":"MAX(M67:M78)","v":0},{"$f":"AVERAGE(N67:N78)","v":{"$error":"#DIV/0!"}},{"$f":"MAX(O67:O78)","v":0}]

{"sheet":"SO2","index":16,"n_rows":79,"n_cols":17,"rows_kept":79,"cut":false,"hidden":false,"merged":[[3,16,7,18],[9,16,11,18],[12,16,15,18],[66,9,78,9],[4,1,4,3],[4,4,4,6],[4,9,4,14],[6,9,18,9],[21,9,33,9],[36,9,48,9],[47,0,47,6],[48,0,51,6],[51,9,63,9],[18,4,18,6]]}
[{"$f":"+'Cover Page'!$B$29","v":"Annual Performance Report 2023"},null,null,null,{"$f":"+'Cover Page'!$B$33","v":"Suffolk Energy from Waste Facility"}]
[]
["Monitoring of Sulphur dioxide emissions",null,null,"Whole Installation",null,null,"See  Notes in Cell Q3",null,null,{"$f":"+A3","v":"Monitoring of Sulphur dioxide emissions"},null,null,null,"Per Combustion Line",null,null,"Notes:"]
[null,null,null,null,null,null,null,null,null,null,null,null,null,null,null,null,"User to add logic to complete Whole installation, Table A5:G18. From the data in Per Combustion Line, Table J6:O79, subject to No. of lines installed"]
["mg/Nm3","1/2 Hourly Reference Periods",null,null,"Daily Reference Periods"]
[{"$f":"+'Cover Page'!C39","v":2023},"1/2 hourly SO2 ELV","Monthly 1/2 hourly mean","Highest 1/2 hourly maximum","Daily SO2 ELV*","Monthly daily mean","Highest daily maximum",null,null,{"$f":"+A6","v":2023},"mg/Nm3","Monthly 1/2 hourly mean","Monthly 1/2 hourly maximum","Monthly daily mean","Monthly daily maximum"]
["Jan",200,{"$f":"AVERAGE(L7,L22)","v":39.54354838709677},{"$f":"MAX(M7,M22)","v":164.1},50,{"$f":"AVERAGE(N7,N22)","v":39.54354838709677},{"$f":"MAX(O7,O22)","v":46.1},null,null,"A1","Jan",39.538709677419348,139.4,39.538709677419348,43.7]
["Feb",200,{"$f":"AVERAGE(L8,L23)","v":43.546384615384611},{"$f":"MAX(M8,M23)","v":266.3},50,{"$f":"AVERAGE(N8,N23)","v":43.546384615384611},{"$f":"MAX(O8,O23)","v":179.9},null,null,null,"Feb",40.480769230769219,103.5,40.480769230769219,45.4]
["Mar",200,39.788709677419348,{"$f":"MAX(M9,M24)","v":162.1},50,39.788709677419348,{"$f":"MAX(O9,O24)","v":44.8},null,null,null,"Mar",39.987096774193546,162.1,39.987096774193546,44.7,null,"Whole Installation table A5:G18:"]
["Apr",200,35.563636363636363,{"$f":"MAX(M10,M25)","v":152.9},50,35.563636363636363,{"$f":"MAX(O10,O25)","v":41.5},null,null,null,"Apr",37.390909090909091,152.9,37.390909090909091,41.5,null,"Mean: for 1/2 hourly and daily periods calculate mean of values across all operational combustion lines for the month"]
["May",200,31.744088669950735,{"$f":"MAX(M11,M26)","v":73.3},50,31.744088669950735,36.799999999999997,null,null,null,"May",29.557142857142853,67.099999999999994,29.557142857142853,36.1]
["Jun",200,32.041666666666664,87.2,50,32.041666666666664,39.9,null,null,null,"Jun",29.473333333333326,87.2,29.473333333333326,39.9]
["Jul",200,32.125459770114944,97.8,50,32.125459770114944,38.5,null,null,null,"Jul",32.527586206896551,97.8,32.527586206896551,38.5,null,"Maximum: for 1/2 hourly and daily periods use the highest value across all operational combustion lines for the month"]
["Aug",200,25.466129032258067,75.7,50,25.466129032258067,36.6,null,null,null,"Aug",27.593548387096774,75.7,27.593548387096774,36.6]
["Sep",200,26.851666666666667,135.6,50,26.851666666666667,37.200000000000003,null,null,null,"Sep",28.349999999999998,135.6,28.349999999999998,35.6]
["Oct",200,24.154838709677421,66.7,50,24.154838709677421,33.4,null,null,null,"Oct",24.735483870967744,65.8,24.735483870967744,31.2]
["Nov",200,28.430595238095236,122.3,50,28.430595238095236,33.200000000000003,null,null,null,"Nov",27.717857142857138,113.4,27.717857142857138,31.2]
["Dec",200,28.551612903225802,183,40,28.551612903225802,36.200000000000003,null,null,null,"Dec",28.35806451612903,142.19999999999999,28.35806451612903,34.6]
[null,null,null,null,"* ELV reduced to 40 mg/Nm3 on 3 December 2023",null,null,null,null,null,"Annual",{"$f":"AVERAGE(L7:L18)","v":32.142541757309559},{"$f":"MAX(M7:M18)","v":162.1},{"$f":"AVERAGE(N7:N18)","v":32.142541757309559},{"$f":"MAX(O7:O18)","v":45.4}]
[]
[null,null,null,null,null,null,null,null,null,{"$f":"+A6","v":2023},"mg/Nm3","Monthly 1/2 hourly mean","Monthly 1/2 hourly maximum","Monthly daily mean","Monthly daily maximum"]
[null,null,null,null,null,null,null,null,null,"A2","Jan",39.548387096774192,164.1,39.548387096774192,46.1]
[null,null,null,null,null,null,null,null,null,null,"Feb",46.611999999999995,266.3,46.611999999999995,179.9]
[null,null,null,null,null,null,null,null,null,null,"Mar",39.590322580645157,158.30000000000001,39.590322580645157,44.8]
[null,null,null,null,null,null,null,null,null,null,"Apr",33.736363636363642,74.099999999999994,33.736363636363642,40.799999999999997]
[null,null,null,null,null,null,null,null,null,null,"May",33.931034482758619,73.3,33.931034482758619,36.799999999999997]
[null,null,null,null,null,null,null,null,null,null,"Jun",34.61,60.9,34.61,37.299999999999997]
[null,null,null,null,null,null,null,null,null,null,"Jul",31.723333333333343,85.1,31.723333333333343,37.799999999999997]
[null,null,null,null,null,null,null,null,null,null,"Aug",23.338709677419359,55.2,23.338709677419359,34.299999999999997]
[null,null,null,null,null,null,null,null,null,null,"Sep",25.353333333333335,99.4,25.353333333333335,37.200000000000003]
[null,null,null,null,null,null,null,null,null,null,"Oct",23.574193548387093,66.7,23.574193548387093,33.4]
[null,null,null,null,null,null,null,null,null,null,"Nov",29.143333333333338,122.3,29.143333333333338,33.200000000000003]
[null,null,null,null,null,null,null,null,null,null,"Dec",28.745161290322578,183,28.745161290322578,36.200000000000003]
[null,null,null,null,null,null,null,null,null,null,"Annual",{"$f":"AVERAGE(L22:L33)","v":32.492181026055889},{"$f":"MAX(M22:M33)","v":266.3},{"$f":"AVERAGE(N22:N33)","v":32.492181026055889},{"$f":"MAX(O22:O33)","v":179.9}]
[]
[null,null,null,null,null,null,null,null,null,{"$f":"+A6","v":2023},"mg/Nm3","Monthly 1/2 hourly mean","Monthly 1/2 hourly maximum","Monthly daily mean","Monthly daily maximum"]
[null,null,null,null,null,null,null,null,null,"A3","Jan"]
[null,null,null,null,null,null,null,null,null,null,"Feb"]
[null,null,null,null,null,null,null,null,null,null,"Mar"]
[null,null,null,null,null,null,null,null,null,null,"Apr"]
[null,null,null,null,null,null,null,null,null,null,"May"]
[null,null,null,null,null,null,null,null,null,null,"Jun"]
[null,null,null,null,null,null,null,null,null,null,"Jul"]
[null,null,null,null,null,null,null,null,null,null,"Aug"]
[null,null,null,null,null,null,null,null,null,null,"Sep"]
[null,null,null,null,null,null,null,null,null,null,"Oct"]
[null,null,null,null,null,null,null,null,null,null,"Nov"]
["Comments :",null,null,null,null,null,null,null,null,null,"Dec"]
["The elevated SO2 result recorded during February 2023 is dicussed further in the 'Permit Compliance' tab.",null,null,null,null,null,null,null,null,null,"Annual",{"$f":"AVERAGE(L37:L48)","v":{"$error":"#DIV/0!"}},{"$f":"MAX(M37:M48)","v":0},{"$f":"AVERAGE(N37:N48)","v":{"$error":"#DIV/0!"}},{"$f":"MAX(O37:O48)","v":0}]
[]
[null,null,null,null,null,null,null,null,null,{"$f":"+A6","v":2023},"mg/Nm3","Monthly 1/2 hourly mean","Monthly 1/2 hourly maximum","Monthly daily mean","Monthly daily maximum"]
[null,null,null,null,null,null,null,null,null,"A4","Jan"]
[null,null,null,null,null,null,null,null,null,null,"Feb"]
[null,null,null,null,null,null,null,null,null,null,"Mar"]
[null,null,null,null,null,null,null,null,null,null,"Apr"]
[null,null,null,null,null,null,null,null,null,null,"May"]
[null,null,null,null,null,null,null,null,null,null,"Jun"]
[null,null,null,null,null,null,null,null,null,null,"Jul"]
[null,null,null,null,null,null,null,null,null,null,"Aug"]
[null,null,null,null,null,null,null,null,null,null,"Sep"]
[null,null,null,null,null,null,null,null,null,null,"Oct"]
[null,null,null,null,null,null,null,null,null,null,"Nov"]
[null,null,null,null,null,null,null,null,null,null,"Dec"]
[null,null,null,null,null,null,null,null,null,null,"Annual",{"$f":"AVERAGE(L52:L63)","v":{"$error":"#DIV/0!"}},{"$f":"MAX(M52:M63)","v":0},{"$f":"AVERAGE(N52:N63)","v":{"$error":"#DIV/0!"}},{"$f":"MAX(O52:O63)","v":0}]
[]
[null,null,null,null,null,null,null,null,null,{"$f":"+A6","v":2023},"mg/Nm3","Monthly 1/2 hourly mean","Monthly 1/2 hourly maximum","Monthly daily mean","Monthly daily maximum"]
[null,null,null,null,null,null,null,null,null,"A5","Jan"]
[null,null,null,null,null,null,null,null,null,null,"Feb"]
[null,null,null,null,null,null,null,null,null,null,"Mar"]
[null,null,null,null,null,null,null,null,null,null,"Apr"]
[null,null,null,null,null,null,null,null,null,null,"May"]
[null,null,null,null,null,null,null,null,null,null,"Jun"]
[null,null,null,null,null,null,null,null,null,null,"Jul"]
[null,null,null,null,null,null,null,null,null,null,"Aug"]
[null,null,null,null,null,null,null,null,null,null,"Sep"]
[null,null,null,null,null,null,null,null,null,null,"Oct"]
[null,null,null,null,null,null,null,null,null,null,"Nov"]
[null,null,null,null,null,null,null,null,null,null,"Dec"]
[null,null,null,null,null,null,null,null,null,null,"Annual",{"$f":"AVERAGE(L67:L78)","v":{"$error":"#DIV/0!"}},{"$f":"MAX(M67:M78)","v":0},{"$f":"AVERAGE(N67:N78)","v":{"$error":"#DIV/0!"}},{"$f":"MAX(O67:O78)","v":0}]

{"sheet":"NOx","index":17,"n_rows":79,"n_cols":17,"rows_kept":79,"cut":false,"hidden":false,"merged":[[3,16,7,18],[9,16,11,18],[12,16,15,18],[66,9,78,9],[4,1,4,3],[4,4,4,6],[4,9,4,14],[6,9,18,9],[21,9,33,9],[36,9,48,9],[47,0,47,6],[48,0,51,6],[51,9,63,9],[18,4,18,6]]}
[{"$f":"+'Cover Page'!$B$29","v":"Annual Performance Report 2023"},null,null,null,{"$f":"+'Cover Page'!$B$33","v":"Suffolk Energy from Waste Facility"}]
[]
["Monitoring of Oxides of Nitrogen emissions",null,null,"Whole Installation",null,null,"See  Notes in Cell Q3",null,null,{"$f":"+A3","v":"Monitoring of Oxides of Nitrogen emissions"},null,null,null,"Per Combustion Line",null,null,"Notes:"]
[null,null,null,null,null,null,null,null,null,null,null,null,null,null,null,null,"User to add logic to complete Whole installation, Table A5:G18. From the data in Per Combustion Line, Table J6:O79, subject to No. of lines installed"]
["mg/Nm3","1/2 Hourly Reference Periods",null,null,"Daily Reference Periods"]
[{"$f":"+'Cover Page'!C39","v":2023},"1/2 hourly NOx ELV","Monthly 1/2 hourly mean","Highest 1/2 hourly maximum","Daily NOx ELV*","Monthly daily mean","Highest daily maximum",null,null,{"$f":"+A6","v":2023},"mg/Nm3","Monthly 1/2 hourly mean","Monthly 1/2 hourly maximum","Monthly daily mean","Monthly daily maximum"]
["Jan",400,{"$f":"AVERAGE(L7,L22)","v":180.37258064516129},{"$f":"MAX(M7,M22)","v":296.2},200,{"$f":"AVERAGE(N7,N22)","v":180.37258064516129},{"$f":"MAX(O7,O22)","v":185.8},null,null,"A1","Jan",180.34193548387094,296.2,180.34193548387094,183.5]
["Feb",400,{"$f":"AVERAGE(L8,L23)","v":179.69830769230771},{"$f":"MAX(M8,M23)","v":319.3},200,{"$f":"AVERAGE(N8,N23)","v":179.69830769230771},{"$f":"MAX(O8,O23)","v":180.8},null,null,null,"Feb",179.5846153846154,319.3,179.5846153846154,180.3]
["Mar",400,179.88548387096776,221.2,200,179.88548387096776,181.1,null,null,null,"Mar",179.87419354838713,212,179.87419354838713,180.9,null,"Whole Installation table A5:G18:"]
["Apr",400,179.10681818181817,214.5,200,179.10681818181817,181.4,null,null,null,"Apr",178.65909090909088,214.5,178.65909090909088,181.4,null,"Mean: for 1/2 hourly and daily periods calculate mean of values across all operational combustion lines for the month"]
["May",400,179.83111658456485,265.7,200,179.83111658456485,188.6,null,null,null,"May",180.03809523809525,221.6,180.03809523809525,180.9]
["Jun",400,168.14,243.7,200,168.14,183.5,null,null,null,"Jun",156.17666666666668,243.7,156.17666666666668,183.5]
["Jul",400,180.05578420467191,225.5,200,180.05578420467191,183,null,null,null,"Jul",179.97931034482758,208.1,179.97931034482758,181.2,null,"Maximum: for 1/2 hourly and daily periods use the highest value across all operational combustion lines for the month"]
["Aug",400,177.07903225806453,248.3,200,177.07903225806453,181.9,null,null,null,"Aug",179.9225806451613,248.3,179.9225806451613,181.9]
["Sep",400,177.63333333333333,220.8,200,177.63333333333333,182.3,null,null,null,"Sep",177.4966666666667,212.7,177.4966666666667,181.2]
["Oct",400,153.95161290322577,258.39999999999998,200,153.95161290322577,168.9,null,null,null,"Oct",152.00967741935477,258.39999999999998,152.00967741935477,165.1]
["Nov",400,165.95499999999998,240.9,200,165.95499999999998,180.2,null,null,null,"Nov",165.50000000000003,240.9,165.50000000000003,169.2]
["Dec",400,165.43709677419355,268.10000000000002,180,165.43709677419355,171.8,null,null,null,"Dec",165.17741935483872,218.5,165.17741935483872,170.5]
[null,null,null,null,"* ELV reduced to 180 mg/Nm3 on 3 December 2023",null,null,null,null,null,"Annual",{"$f":"AVERAGE(L7:L18)","v":172.89668763846461},{"$f":"MAX(M7:M18)","v":319.3},{"$f":"AVERAGE(N7:N18)","v":172.89668763846461},{"$f":"MAX(O7:O18)","v":183.5}]
[]
[null,null,null,null,null,null,null,null,null,{"$f":"+A6","v":2023},"mg/Nm3","Monthly 1/2 hourly mean","Monthly 1/2 hourly maximum","Monthly daily mean","Monthly daily maximum"]
[null,null,null,null,null,null,null,null,null,"A2","Jan",180.40322580645167,239.6,180.40322580645167,185.8]
[null,null,null,null,null,null,null,null,null,null,"Feb",179.81200000000001,218,179.81200000000001,180.8]
[null,null,null,null,null,null,null,null,null,null,"Mar",179.8967741935484,221.2,179.8967741935484,181.1]
[null,null,null,null,null,null,null,null,null,null,"Apr",179.55454545454546,194.1,179.55454545454546,180.2]
[null,null,null,null,null,null,null,null,null,null,"May",179.62413793103445,265.7,179.62413793103445,188.6]
[null,null,null,null,null,null,null,null,null,null,"Jun",180.10333333333332,225.9,180.10333333333332,181.8]
[null,null,null,null,null,null,null,null,null,null,"Jul",180.13225806451621,225.5,180.13225806451621,183]
[null,null,null,null,null,null,null,null,null,null,"Aug",174.23548387096776,207.8,174.23548387096776,180.6]
[null,null,null,null,null,null,null,null,null,null,"Sep",177.76999999999998,220.8,177.76999999999998,182.3]
[null,null,null,null,null,null,null,null,null,null,"Oct",155.89354838709676,226,155.89354838709676,168.9]
[null,null,null,null,null,null,null,null,null,null,"Nov",166.40999999999994,233.2,166.40999999999994,180.2]
[null,null,null,null,null,null,null,null,null,null,"Dec",165.69677419354841,268.10000000000002,165.69677419354841,171.8]
[null,null,null,null,null,null,null,null,null,null,"Annual",{"$f":"AVERAGE(L22:L33)","v":174.96100676958682},{"$f":"MAX(M22:M33)","v":268.10000000000002},{"$f":"AVERAGE(N22:N33)","v":174.96100676958682},{"$f":"MAX(O22:O33)","v":188.6}]
[]
[null,null,null,null,null,null,null,null,null,{"$f":"+A6","v":2023},"mg/Nm3","Monthly 1/2 hourly mean","Monthly 1/2 hourly maximum","Monthly daily mean","Monthly daily maximum"]
[null,null,null,null,null,null,null,null,null,"A3","Jan"]
[null,null,null,null,null,null,null,null,null,null,"Feb"]
[null,null,null,null,null,null,null,null,null,null,"Mar"]
[null,null,null,null,null,null,null,null,null,null,"Apr"]
[null,null,null,null,null,null,null,null,null,null,"May"]
[null,null,null,null,null,null,null,null,null,null,"Jun"]
[null,null,null,null,null,null,null,null,null,null,"Jul"]
[null,null,null,null,null,null,null,null,null,null,"Aug"]
[null,null,null,null,null,null,null,null,null,null,"Sep"]
[null,null,null,null,null,null,null,null,null,null,"Oct"]
[null,null,null,null,null,null,null,null,null,null,"Nov"]
["Comments :",null,null,null,null,null,null,null,null,null,"Dec"]
[null,null,null,null,null,null,null,null,null,null,"Annual",{"$f":"AVERAGE(L37:L48)","v":{"$error":"#DIV/0!"}},{"$f":"MAX(M37:M48)","v":0},{"$f":"AVERAGE(N37:N48)","v":{"$error":"#DIV/0!"}},{"$f":"MAX(O37:O48)","v":0}]
[]
[null,null,null,null,null,null,null,null,null,{"$f":"+A6","v":2023},"mg/Nm3","Monthly 1/2 hourly mean","Monthly 1/2 hourly maximum","Monthly daily mean","Monthly daily maximum"]
[null,null,null,null,null,null,null,null,null,"A4","Jan"]
[null,null,null,null,null,null,null,null,null,null,"Feb"]
[null,null,null,null,null,null,null,null,null,null,"Mar"]
[null,null,null,null,null,null,null,null,null,null,"Apr"]
[null,null,null,null,null,null,null,null,null,null,"May"]
[null,null,null,null,null,null,null,null,null,null,"Jun"]
[null,null,null,null,null,null,null,null,null,null,"Jul"]
[null,null,null,null,null,null,null,null,null,null,"Aug"]
[null,null,null,null,null,null,null,null,null,null,"Sep"]
[null,null,null,null,null,null,null,null,null,null,"Oct"]
[null,null,null,null,null,null,null,null,null,null,"Nov"]
[null,null,null,null,null,null,null,null,null,null,"Dec"]
[null,null,null,null,null,null,null,null,null,null,"Annual",{"$f":"AVERAGE(L52:L63)","v":{"$error":"#DIV/0!"}},{"$f":"MAX(M52:M63)","v":0},{"$f":"AVERAGE(N52:N63)","v":{"$error":"#DIV/0!"}},{"$f":"MAX(O52:O63)","v":0}]
[]
[null,null,null,null,null,null,null,null,null,{"$f":"+A6","v":2023},"mg/Nm3","Monthly 1/2 hourly mean","Monthly 1/2 hourly maximum","Monthly daily mean","Monthly daily maximum"]
[null,null,null,null,null,null,null,null,null,"A5","Jan"]
[null,null,null,null,null,null,null,null,null,null,"Feb"]
[null,null,null,null,null,null,null,null,null,null,"Mar"]
[null,null,null,null,null,null,null,null,null,null,"Apr"]
[null,null,null,null,null,null,null,null,null,null,"May"]
[null,null,null,null,null,null,null,null,null,null,"Jun"]
[null,null,null,null,null,null,null,null,null,null,"Jul"]
[null,null,null,null,null,null,null,null,null,null,"Aug"]
[null,null,null,null,null,null,null,null,null,null,"Sep"]
[null,null,null,null,null,null,null,null,null,null,"Oct"]
[null,null,null,null,null,null,null,null,null,null,"Nov"]
[null,null,null,null,null,null,null,null,null,null,"Dec"]
[null,null,null,null,null,null,null,null,null,null,"Annual",{"$f":"AVERAGE(L67:L78)","v":{"$error":"#DIV/0!"}},{"$f":"MAX(M67:M78)","v":0},{"$f":"AVERAGE(N67:N78)","v":{"$error":"#DIV/0!"}},{"$f":"MAX(O67:O78)","v":0}]

{"sheet":"TOC","index":18,"n_rows":79,"n_cols":17,"rows_kept":79,"cut":false,"hidden":false,"merged":[[3,16,7,18],[9,16,11,18],[12,16,15,18],[66,9,78,9],[4,1,4,3],[4,4,4,6],[4,9,4,14],[6,9,18,9],[21,9,33,9],[36,9,48,9],[47,0,47,6],[48,0,51,6],[51,9,63,9]]}
[{"$f":"+'Cover Page'!$B$29","v":"Annual Performance Report 2023"},null,null,null,{"$f":"+'Cover Page'!$B$33","v":"Suffolk Energy from Waste Facility"}]
[]
["Monitoring of Total organic carbon emissions",null,null,"Whole Installation",null,null,"See  Notes in Cell Q3",null,null,{"$f":"+A3","v":"Monitoring of Total organic carbon emissions"},null,null,null,"Per Combustion Line",null,null,"Notes:"]
[null,null,null,null,null,null,null,null,null,null,null,null,null,null,null,null,"User to add logic to complete Whole installation, Table A5:G18. From the data in Per Combustion Line, Table J6:O79, subject to No. of lines installed"]
["mg/Nm3","1/2 Hourly Reference Periods",null,null,"Daily Reference Periods"]
[{"$f":"+'Cover Page'!C39","v":2023},"1/2 hourly TOC ELV","Monthly 1/2 hourly mean","Highest 1/2 hourly maximum","Daily TOC ELV","Monthly daily mean","Highest daily maximum",null,null,{"$f":"+A6","v":2023},"mg/Nm3","Monthly 1/2 hourly mean","Monthly 1/2 hourly maximum","Monthly daily mean","Monthly daily maximum"]
["Jan",20,{"$f":"AVERAGE(L7,L22)","v":0.37419354838709706},{"$f":"MAX(M7,M22)","v":4.4000000000000004},10,{"$f":"AVERAGE(N7,N22)","v":0.37419354838709706},{"$f":"MAX(O7,O22)","v":0.5},null,null,"A1","Jan",0.39032258064516157,4.4000000000000004,0.39032258064516157,0.5]
["Feb",20,{"$f":"AVERAGE(L8,L23)","v":0.68892307692307675},{"$f":"MAX(M8,M23)","v":189.1},10,{"$f":"AVERAGE(N8,N23)","v":0.68892307692307675},{"$f":"MAX(O8,O23)","v":0.6},null,null,null,"Feb",0.95384615384615357,189.1,0.95384615384615357,0.5]
["Mar",20,0.40967741935483892,{"$f":"MAX(M9,M24)","v":8.1},10,0.40967741935483892,0.7,null,null,null,"Mar",0.41612903225806469,8.1,0.41612903225806469,0.6,null,"Whole Installation table A5:G18:"]
["Apr",20,0.44545454545454544,11.7,10,0.44545454545454544,0.7,null,null,null,"Apr",0.47272727272727272,11.7,0.47272727272727272,0.7,null,"Mean: for 1/2 hourly and daily periods calculate mean of values across all operational combustion lines for the month"]
["May",20,0.58407224958949089,5.6,10,0.58407224958949089,0.9,null,null,null,"May",0.50952380952380949,5.6,0.50952380952380949,0.6]
["Jun",20,0.48666666666666658,8,10,0.48666666666666658,0.8,null,null,null,"Jun",0.47999999999999993,8,0.47999999999999993,0.8]
["Jul",20,0.60862068965517224,10.6,10,0.60862068965517224,0.9,null,null,null,"Jul",0.61724137931034473,10.6,0.61724137931034473,0.8,null,"Maximum: for 1/2 hourly and daily periods use the highest value across all operational combustion lines for the month"]
["Aug",20,0.43870967741935474,18.899999999999999,10,0.43870967741935474,1.7,null,null,null,"Aug",0.38709677419354827,18.899999999999999,0.38709677419354827,0.7]
["Sep",20,0.46833333333333338,10,10,0.46833333333333338,0.7,null,null,null,"Sep",0.46666666666666673,10,0.46666666666666673,0.7]
["Oct",20,0.45000000000000012,16.2,10,0.45000000000000012,0.8,null,null,null,"Oct",0.43225806451612919,16.2,0.43225806451612919,0.8]
["Nov",20,0.43928571428571439,19.399999999999999,10,0.43928571428571439,0.9,null,null,null,"Nov",0.37857142857142861,12.2,0.37857142857142861,0.6]
["Dec",20,0.39032258064516134,16.3,10,0.39032258064516134,0.8,null,null,null,"Dec",0.33225806451612899,3.4,0.33225806451612899,0.6]
[null,null,null,null,null,null,null,null,null,null,"Annual",{"$f":"AVERAGE(L7:L18)","v":0.48638676889789245},{"$f":"MAX(M7:M18)","v":189.1},{"$f":"AVERAGE(N7:N18)","v":0.48638676889789245},{"$f":"MAX(O7:O18)","v":0.8}]
[]
[null,null,null,null,null,null,null,null,null,{"$f":"+A6","v":2023},"mg/Nm3","Monthly 1/2 hourly mean","Monthly 1/2 hourly maximum","Monthly daily mean","Monthly daily maximum"]
[null,null,null,null,null,null,null,null,null,"A2","Jan",0.35806451612903251,1.6,0.35806451612903251,0.5]
[null,null,null,null,null,null,null,null,null,null,"Feb",0.42400000000000004,4.4000000000000004,0.42400000000000004,0.6]
[null,null,null,null,null,null,null,null,null,null,"Mar",0.40322580645161316,6.3,0.40322580645161316,0.7]
[null,null,null,null,null,null,null,null,null,null,"Apr",0.41818181818181815,1.4,0.41818181818181815,0.6]
[null,null,null,null,null,null,null,null,null,null,"May",0.65862068965517229,2.8,0.65862068965517229,0.9]
[null,null,null,null,null,null,null,null,null,null,"Jun",0.49333333333333318,6.1,0.49333333333333318,0.7]
[null,null,null,null,null,null,null,null,null,null,"Jul",0.59999999999999987,2.8,0.59999999999999987,0.9]
[null,null,null,null,null,null,null,null,null,null,"Aug",0.49032258064516121,5.4,0.49032258064516121,1.7]
[null,null,null,null,null,null,null,null,null,null,"Sep",0.47000000000000003,7.6,0.47000000000000003,0.7]
[null,null,null,null,null,null,null,null,null,null,"Oct",0.46774193548387105,10.199999999999999,0.46774193548387105,0.7]
[null,null,null,null,null,null,null,null,null,null,"Nov",0.50000000000000011,19.399999999999999,0.50000000000000011,0.9]
[null,null,null,null,null,null,null,null,null,null,"Dec",0.44838709677419369,16.3,0.44838709677419369,0.8]
[null,null,null,null,null,null,null,null,null,null,"Annual",{"$f":"AVERAGE(L22:L33)","v":0.4776564813878495},{"$f":"MAX(M22:M33)","v":19.399999999999999},{"$f":"AVERAGE(N22:N33)","v":0.4776564813878495},{"$f":"MAX(O22:O33)","v":1.7}]
[]
[null,null,null,null,null,null,null,null,null,{"$f":"+A6","v":2023},"mg/Nm3","Monthly 1/2 hourly mean","Monthly 1/2 hourly maximum","Monthly daily mean","Monthly daily maximum"]
[null,null,null,null,null,null,null,null,null,"A3","Jan"]
[null,null,null,null,null,null,null,null,null,null,"Feb"]
[null,null,null,null,null,null,null,null,null,null,"Mar"]
[null,null,null,null,null,null,null,null,null,null,"Apr"]
[null,null,null,null,null,null,null,null,null,null,"May"]
[null,null,null,null,null,null,null,null,null,null,"Jun"]
[null,null,null,null,null,null,null,null,null,null,"Jul"]
[null,null,null,null,null,null,null,null,null,null,"Aug"]
[null,null,null,null,null,null,null,null,null,null,"Sep"]
[null,null,null,null,null,null,null,null,null,null,"Oct"]
[null,null,null,null,null,null,null,null,null,null,"Nov"]
["Comments :",null,null,null,null,null,null,null,null,null,"Dec"]
["The elevated TOC results relate to a power loss incident on the 07/02/2023 as discussed on the 'Permit Compliance' tab.",null,null,null,null,null,null,null,null,null,"Annual",{"$f":"AVERAGE(L37:L48)","v":{"$error":"#DIV/0!"}},{"$f":"MAX(M37:M48)","v":0},{"$f":"AVERAGE(N37:N48)","v":{"$error":"#DIV/0!"}},{"$f":"MAX(O37:O48)","v":0}]
[]
[null,null,null,null,null,null,null,null,null,{"$f":"+A6","v":2023},"mg/Nm3","Monthly 1/2 hourly mean","Monthly 1/2 hourly maximum","Monthly daily mean","Monthly daily maximum"]
[null,null,null,null,null,null,null,null,null,"A4","Jan"]
[null,null,null,null,null,null,null,null,null,null,"Feb"]
[null,null,null,null,null,null,null,null,null,null,"Mar"]
[null,null,null,null,null,null,null,null,null,null,"Apr"]
[null,null,null,null,null,null,null,null,null,null,"May"]
[null,null,null,null,null,null,null,null,null,null,"Jun"]
[null,null,null,null,null,null,null,null,null,null,"Jul"]
[null,null,null,null,null,null,null,null,null,null,"Aug"]
[null,null,null,null,null,null,null,null,null,null,"Sep"]
[null,null,null,null,null,null,null,null,null,null,"Oct"]
[null,null,null,null,null,null,null,null,null,null,"Nov"]
[null,null,null,null,null,null,null,null,null,null,"Dec"]
[null,null,null,null,null,null,null,null,null,null,"Annual",{"$f":"AVERAGE(L52:L63)","v":{"$error":"#DIV/0!"}},{"$f":"MAX(M52:M63)","v":0},{"$f":"AVERAGE(N52:N63)","v":{"$error":"#DIV/0!"}},{"$f":"MAX(O52:O63)","v":0}]
[]
[null,null,null,null,null,null,null,null,null,{"$f":"+A6","v":2023},"mg/Nm3","Monthly 1/2 hourly mean","Monthly 1/2 hourly maximum","Monthly daily mean","Monthly daily maximum"]
[null,null,null,null,null,null,null,null,null,"A5","Jan"]
[null,null,null,null,null,null,null,null,null,null,"Feb"]
[null,null,null,null,null,null,null,null,null,null,"Mar"]
[null,null,null,null,null,null,null,null,null,null,"Apr"]
[null,null,null,null,null,null,null,null,null,null,"May"]
[null,null,null,null,null,null,null,null,null,null,"Jun"]
[null,null,null,null,null,null,null,null,null,null,"Jul"]
[null,null,null,null,null,null,null,null,null,null,"Aug"]
[null,null,null,null,null,null,null,null,null,null,"Sep"]
[null,null,null,null,null,null,null,null,null,null,"Oct"]
[null,null,null,null,null,null,null,null,null,null,"Nov"]
[null,null,null,null,null,null,null,null,null,null,"Dec"]
[null,null,null,null,null,null,null,null,null,null,"Annual",{"$f":"AVERAGE(L67:L78)","v":{"$error":"#DIV/0!"}},{"$f":"MAX(M67:M78)","v":0},{"$f":"AVERAGE(N67:N78)","v":{"$error":"#DIV/0!"}},{"$f":"MAX(O67:O78)","v":0}]

{"sheet":"Particulates","index":19,"n_rows":79,"n_cols":17,"rows_kept":79,"cut":false,"hidden":false,"merged":[[3,16,7,18],[9,16,11,18],[12,16,15,18],[66,9,78,9],[4,1,4,3],[4,4,4,6],[4,9,4,14],[6,9,18,9],[21,9,33,9],[36,9,48,9],[47,0,47,6],[48,0,51,6],[51,9,63,9],[18,4,18,6]]}
[{"$f":"+'Cover Page'!$B$29","v":"Annual Performance Report 2023"},null,null,null,{"$f":"+'Cover Page'!$B$33","v":"Suffolk Energy from Waste Facility"}]
[]
["Monitoring of Particulate matter emissions",null,null,"Whole Installation",null,null,"See  Notes in Cell Q3",null,null,{"$f":"+A3","v":"Monitoring of Particulate matter emissions"},null,null,null,"Per Combustion Line",null,null,"Notes:"]
[null,null,null,null,null,null,null,null,null,null,null,null,null,null,null,null,"User to add logic to complete Whole installation, Table A5:G18. From the data in Per Combustion Line, Table J6:O79, subject to No. of lines installed"]
["mg/Nm3","1/2 Hourly Reference Periods",null,null,"Daily Reference Periods"]
[{"$f":"+'Cover Page'!C39","v":2023},"1/2 hourly PM ELV","Monthly 1/2 hourly mean","Highest 1/2 hourly maximum","Daily PM ELV*","Monthly daily mean","Highest daily maximum",null,null,{"$f":"+A6","v":2023},"mg/Nm3","Monthly 1/2 hourly mean","Monthly 1/2 hourly maximum","Monthly daily mean","Monthly daily maximum"]
["Jan",30,{"$f":"AVERAGE(L7,L22)","v":0.78870967741935516},{"$f":"MAX(M7,M22)","v":1.3},10,{"$f":"AVERAGE(N7,N22)","v":0.78870967741935516},{"$f":"MAX(O7,O22)","v":1.1000000000000001},null,null,"A1","Jan",0.5419354838709679,1,0.5419354838709679,0.8]
["Feb",30,{"$f":"AVERAGE(L8,L23)","v":0.70769230769230773},{"$f":"MAX(M8,M23)","v":3.1},10,{"$f":"AVERAGE(N8,N23)","v":0.70769230769230773},{"$f":"MAX(O8,O23)","v":1.3},null,null,null,"Feb",0.4153846153846153,1.3,0.4153846153846153,0.6]
["Mar",30,0.48064516129032253,1.1000000000000001,10,0.48064516129032253,0.7,null,null,null,"Mar",0.3322580645161291,1.1000000000000001,0.3322580645161291,0.6,null,"Whole Installation table A5:G18:"]
["Apr",30,0.58409090909090911,1,10,0.58409090909090911,0.8,null,null,null,"Apr",0.43181818181818188,0.8,0.43181818181818188,0.5,null,"Mean: for 1/2 hourly and daily periods calculate mean of values across all operational combustion lines for the month"]
["May",30,0.73234811165845637,2.9,10,0.73234811165845637,0.9,null,null,null,"May",0.60952380952380936,2.9,0.60952380952380936,0.7]
["Jun",30,0.65666666666666673,1.2,10,0.65666666666666673,1,null,null,null,"Jun",0.52333333333333332,1.2,0.52333333333333332,1]
["Jul",30,0.64849833147942171,1,10,0.64849833147942171,0.8,null,null,null,"Jul",0.50344827586206897,1,0.50344827586206897,0.7,null,"Maximum: for 1/2 hourly and daily periods use the highest value across all operational combustion lines for the month"]
["Aug",30,0.49677419354838703,3,10,0.49677419354838703,0.9,null,null,null,"Aug",0.20645161290322556,0.9,0.20645161290322556,0.5]
["Sep",30,0.49500000000000016,1,10,0.49500000000000016,0.8,null,null,null,"Sep",0.21666666666666665,0.7,0.21666666666666665,0.3]
["Oct",30,0.7645161290322583,3.2,10,0.7645161290322583,2.6,null,null,null,"Oct",0.50645161290322593,1.1000000000000001,0.50645161290322593,0.8]
["Nov",30,0.89428571428571435,5,10,0.89428571428571435,2.2000000000000002,null,null,null,"Nov",0.62857142857142845,1.1000000000000001,0.62857142857142845,0.8]
["Dec",30,{"$f":"AVERAGE(L18,L33)","v":0.90161290322580645},3.1,10,0.90161290322580645,2.2000000000000002,null,null,null,"Dec",0.60322580645161261,1,0.60322580645161261,0.8]
[null,null,null,null,"* ELV reduced to 5 mg/Nm3 on 3 December 2023",null,null,null,null,null,"Annual",{"$f":"AVERAGE(L7:L18)","v":0.45992240765043868},{"$f":"MAX(M7:M18)","v":2.9},{"$f":"AVERAGE(N7:N18)","v":0.45992240765043868},{"$f":"MAX(O7:O18)","v":1}]
[]
[null,null,null,null,null,null,null,null,null,{"$f":"+A6","v":2023},"mg/Nm3","Monthly 1/2 hourly mean","Monthly 1/2 hourly maximum","Monthly daily mean","Monthly daily maximum"]
[null,null,null,null,null,null,null,null,null,"A2","Jan",1.0354838709677425,1.3,1.0354838709677425,1.1000000000000001]
[null,null,null,null,null,null,null,null,null,null,"Feb",1.0000000000000002,3.1,1.0000000000000002,1.3]
[null,null,null,null,null,null,null,null,null,null,"Mar",0.6290322580645159,0.9,0.6290322580645159,0.7]
[null,null,null,null,null,null,null,null,null,null,"Apr",0.73636363636363633,1,0.73636363636363633,0.8]
[null,null,null,null,null,null,null,null,null,null,"May",0.85517241379310338,1.9,0.85517241379310338,0.9]
[null,null,null,null,null,null,null,null,null,null,"Jun",0.79000000000000015,1.1000000000000001,0.79000000000000015,0.9]
[null,null,null,null,null,null,null,null,null,null,"Jul",0.79354838709677455,1,0.79354838709677455,0.8]
[null,null,null,null,null,null,null,null,null,null,"Aug",0.78709677419354851,3,0.78709677419354851,0.9]
[null,null,null,null,null,null,null,null,null,null,"Sep",0.77333333333333365,1,0.77333333333333365,0.8]
[null,null,null,null,null,null,null,null,null,null,"Oct",1.0225806451612907,3.2,1.0225806451612907,2.6]
[null,null,null,null,null,null,null,null,null,null,"Nov",1.1600000000000004,5,1.1600000000000004,2.2000000000000002]
[null,null,null,null,null,null,null,null,null,null,"Dec",1.2000000000000004,3.1,1.2000000000000004,2.2000000000000002]
[null,null,null,null,null,null,null,null,null,null,"Annual",{"$f":"AVERAGE(L22:L33)","v":0.89855094324782891},{"$f":"MAX(M22:M33)","v":5},{"$f":"AVERAGE(N22:N33)","v":0.89855094324782891},{"$f":"MAX(O22:O33)","v":2.6}]
[]
[null,null,null,null,null,null,null,null,null,{"$f":"+A6","v":2023},"mg/Nm3","Monthly 1/2 hourly mean","Monthly 1/2 hourly maximum","Monthly daily mean","Monthly daily maximum"]
[null,null,null,null,null,null,null,null,null,"A3","Jan"]
[null,null,null,null,null,null,null,null,null,null,"Feb"]
[null,null,null,null,null,null,null,null,null,null,"Mar"]
[null,null,null,null,null,null,null,null,null,null,"Apr"]
[null,null,null,null,null,null,null,null,null,null,"May"]
[null,null,null,null,null,null,null,null,null,null,"Jun"]
[null,null,null,null,null,null,null,null,null,null,"Jul"]
[null,null,null,null,null,null,null,null,null,null,"Aug"]
[null,null,null,null,null,null,null,null,null,null,"Sep"]
[null,null,null,null,null,null,null,null,null,null,"Oct"]
[null,null,null,null,null,null,null,null,null,null,"Nov"]
["Comments :",null,null,null,null,null,null,null,null,null,"Dec"]
[null,null,null,null,null,null,null,null,null,null,"Annual",{"$f":"AVERAGE(L37:L48)","v":{"$error":"#DIV/0!"}},{"$f":"MAX(M37:M48)","v":0},{"$f":"AVERAGE(N37:N48)","v":{"$error":"#DIV/0!"}},{"$f":"MAX(O37:O48)","v":0}]
[]
[null,null,null,null,null,null,null,null,null,{"$f":"+A6","v":2023},"mg/Nm3","Monthly 1/2 hourly mean","Monthly 1/2 hourly maximum","Monthly daily mean","Monthly daily maximum"]
[null,null,null,null,null,null,null,null,null,"A4","Jan"]
[null,null,null,null,null,null,null,null,null,null,"Feb"]
[null,null,null,null,null,null,null,null,null,null,"Mar"]
[null,null,null,null,null,null,null,null,null,null,"Apr"]
[null,null,null,null,null,null,null,null,null,null,"May"]
[null,null,null,null,null,null,null,null,null,null,"Jun"]
[null,null,null,null,null,null,null,null,null,null,"Jul"]
[null,null,null,null,null,null,null,null,null,null,"Aug"]
[null,null,null,null,null,null,null,null,null,null,"Sep"]
[null,null,null,null,null,null,null,null,null,null,"Oct"]
[null,null,null,null,null,null,null,null,null,null,"Nov"]
[null,null,null,null,null,null,null,null,null,null,"Dec"]
[null,null,null,null,null,null,null,null,null,null,"Annual",{"$f":"AVERAGE(L52:L63)","v":{"$error":"#DIV/0!"}},{"$f":"MAX(M52:M63)","v":0},{"$f":"AVERAGE(N52:N63)","v":{"$error":"#DIV/0!"}},{"$f":"MAX(O52:O63)","v":0}]
[]
[null,null,null,null,null,null,null,null,null,{"$f":"+A6","v":2023},"mg/Nm3","Monthly 1/2 hourly mean","Monthly 1/2 hourly maximum","Monthly daily mean","Monthly daily maximum"]
[null,null,null,null,null,null,null,null,null,"A5","Jan"]
[null,null,null,null,null,null,null,null,null,null,"Feb"]
[null,null,null,null,null,null,null,null,null,null,"Mar"]
[null,null,null,null,null,null,null,null,null,null,"Apr"]
[null,null,null,null,null,null,null,null,null,null,"May"]
[null,null,null,null,null,null,null,null,null,null,"Jun"]
[null,null,null,null,null,null,null,null,null,null,"Jul"]
[null,null,null,null,null,null,null,null,null,null,"Aug"]
[null,null,null,null,null,null,null,null,null,null,"Sep"]
[null,null,null,null,null,null,null,null,null,null,"Oct"]
[null,null,null,null,null,null,null,null,null,null,"Nov"]
[null,null,null,null,null,null,null,null,null,null,"Dec"]
[null,null,null,null,null,null,null,null,null,null,"Annual",{"$f":"AVERAGE(L67:L78)","v":{"$error":"#DIV/0!"}},{"$f":"MAX(M67:M78)","v":0},{"$f":"AVERAGE(N67:N78)","v":{"$error":"#DIV/0!"}},{"$f":"MAX(O67:O78)","v":0}]

{"sheet":"CO 95% 10 min","index":20,"n_rows":79,"n_cols":19,"rows_kept":79,"cut":false,"hidden":false,"merged":[[3,18,7,20],[9,18,11,20],[12,18,15,20],[66,10,78,10],[4,1,4,4],[4,5,4,7],[4,10,4,16],[6,10,18,10],[21,10,33,10],[36,10,48,10],[47,0,47,7],[48,0,51,7],[51,10,63,10]]}
[{"$f":"+'Cover Page'!$B$29","v":"Annual Performance Report 2023"},null,null,null,{"$f":"+'Cover Page'!$B$33","v":"Suffolk Energy from Waste Facility"}]
[]
["Monitoring of Carbon Monoxide (10-minute avg)",null,null,null,"Whole Installation",null,null,"See  Notes in Cell S3",null,{"$f":"+A3","v":"Monitoring of Carbon Monoxide (10-minute avg)"},null,null,null,null,"Per Combustion Line",null,"Notes:",null,"Notes:"]
[null,null,null,null,null,null,null,null,null,null,null,null,null,null,null,null,null,null,"User to add logic to complete Whole installation, Table A5:H18. From the data in Per Combustion Line, Table K6:Q79, subject to No. of lines installed"]
["mg/Nm3","10-minute Reference Periods",null,null,null,"Daily Reference Periods"]
[{"$f":"+'Cover Page'!C39","v":2023},"95%ile 10-min avg CO ELV","95%ile 10-min avg maximum","Monthly CO 10-min avg mean","10-min avg maximum","Daily CO ELV","Monthly daily mean","Highest daily maximum",null,null,{"$f":"+A6","v":2023},"mg/Nm3","95%ile 10-min avg maximum","Monthly CO 10-min avg mean","10-min avg maximum","Monthly daily mean","Monthly daily maximum"]
["Jan",150,{"$f":"AVERAGE(M7,M22)","v":8.6791298389434814},{"$f":"AVERAGE(N7,N22)","v":2.3080645161290323},{"$f":"MAX(O7,O22)","v":840.4},50,{"$f":"AVERAGE(P7,P22)","v":2.3080645161290323},{"$f":"MAX(Q7,Q22)","v":6.9},null,null,"A1","Jan",12.997700691223145,{"$f":"P7","v":2.7129032258064516},300.10000000000002,2.7129032258064516,4.7]
["Feb",{"$f":"+B7","v":150},{"$f":"AVERAGE(M8,M23)","v":1137.4189157485962},{"$f":"AVERAGE(N8,N23)","v":9.4027692307692305},{"$f":"MAX(O8,O23)","v":2324.6},{"$f":"+F7","v":50},{"$f":"AVERAGE(P8,P23)","v":9.4027692307692305},{"$f":"MAX(Q8,Q23)","v":10.5},null,null,null,"Feb",2269.525146484375,{"$f":"P8","v":15.961538461538462},2324.6,15.961538461538462,10.5]
["Mar",{"$f":"+B8","v":150},39.555267333984375,3.258064516129032,{"$f":"MAX(O9,O24)","v":473.3},{"$f":"+F8","v":50},3.258064516129032,39.9,null,null,null,"Mar",11.605209350585938,2.2193548387096773,473.3,2.2193548387096773,5.9,null,"Whole Installation table A5:H18:"]
["Apr",150,11.214876651763916,2.1181818181818186,308,50,2.1181818181818186,5.7,null,null,null,"Apr",17.920326232910156,2.4181818181818184,308,2.4181818181818184,5.7,null,"Mean: for 10-min and daily periods use average of all operational combustion lines."]
["May",150,20.196995258331299,2.3695402298850574,371,50,2.3695402298850574,8.1,null,null,null,"May",25.094869613647461,2.8666666666666667,336.3,2.8666666666666667,8.1]
["Jun",150,32.988521099090576,3.101666666666667,410,50,3.101666666666667,14,null,null,null,"Jun",61.272846221923828,4.2366666666666672,396.9,4.2366666666666672,14]
["Jul",150,65.777374267578125,3.4179644048943261,373.3,50,3.4179644048943261,13.5,null,null,null,"Jul",69.228668212890625,4.206896551724137,371.2,4.206896551724137,11.4,null,"Maximum: for 10-min and daily periods use the highest of all operational combustion lines in any month."]
["Aug",150,40.689044952392578,2.8693548387096772,391.5,50,2.8693548387096772,11.7,null,null,null,"Aug",58.253688812255859,3.4870967741935481,317.8,3.4870967741935481,11.7]
["Sep",150,25.996959686279297,2.768333333333334,891.1,50,2.768333333333334,8.5,null,null,null,"Sep",37.609462738037109,3.3400000000000012,891.1,3.3400000000000012,8.5]
["Oct",150,10.884824752807617,3.6887096774193555,381.1,50,3.6887096774193555,12.5,null,null,null,"Oct",7.5865030288696289,4.4612903225806457,357.1,4.4612903225806457,12.5]
["Nov",150,199.13131618499756,3.2071428571428577,1211.5,50,3.2071428571428577,9.6999999999999993,null,null,null,"Nov",366.48974609375,4.0142857142857151,1211.5,4.0142857142857151,9.6999999999999993]
["Dec",150,51.764687538146973,3.1161290322580637,368.2,50,3.1161290322580637,12.5,null,null,null,"Dec",86.889312744140625,3.5225806451612902,368.2,3.5225806451612902,12.5]
[null,null,null,null,null,null,null,null,null,null,null,"Annual",{"$f":"AVERAGE(M7:M18)","v":252.03945668538412},null,{"$f":"MAX(O7:O18)","v":2324.6},{"$f":"AVERAGE(P7:P18)","v":4.4539551404595903},{"$f":"MAX(Q7:Q18)","v":14}]
[]
[null,null,null,null,null,null,null,null,null,null,{"$f":"+A6","v":2023},"mg/Nm3","95%ile 10-min avg maximum","Monthly CO 10-min avg mean","10-min avg maximum","Monthly daily mean","Monthly daily maximum"]
[null,null,null,null,null,null,null,null,null,null,"A2","Jan",4.3605589866638184,{"$f":"P22","v":1.903225806451613},840.4,1.903225806451613,6.9]
[null,null,null,null,null,null,null,null,null,null,null,"Feb",5.3126850128173828,{"$f":"P23","v":2.8440000000000003},492.3,2.8440000000000003,5.2]
[null,null,null,null,null,null,null,null,null,null,null,"Mar",67.505325317382813,4.2967741935483863,456,4.2967741935483863,39.9]
[null,null,null,null,null,null,null,null,null,null,null,"Apr",4.5094270706176758,1.8181818181818186,214.6,1.8181818181818186,3]
[null,null,null,null,null,null,null,null,null,null,null,"May",15.299120903015137,1.8724137931034481,371,1.8724137931034481,4.7]
[null,null,null,null,null,null,null,null,null,null,null,"Jun",4.7041959762573242,1.966666666666667,410,1.966666666666667,6.8]
[null,null,null,null,null,null,null,null,null,null,null,"Jul",62.326080322265625,2.6290322580645151,373.3,2.6290322580645151,13.5]
[null,null,null,null,null,null,null,null,null,null,null,"Aug",23.124401092529297,2.2516129032258063,391.5,2.2516129032258063,6.7]
[null,null,null,null,null,null,null,null,null,null,null,"Sep",14.384456634521484,2.1966666666666668,409.7,2.1966666666666668,5.9]
[null,null,null,null,null,null,null,null,null,null,null,"Oct",14.183146476745605,2.9161290322580649,381.1,2.9161290322580649,8.3000000000000007]
[null,null,null,null,null,null,null,null,null,null,null,"Nov",31.772886276245117,2.4000000000000004,428.5,2.4000000000000004,9.6]
[null,null,null,null,null,null,null,null,null,null,null,"Dec",16.64006233215332,2.7096774193548376,304.2,2.7096774193548376,7.8]
[null,null,null,null,null,null,null,null,null,null,null,"Annual",{"$f":"AVERAGE(M22:M33)","v":22.010195533434551},null,{"$f":"MAX(O22:O33)","v":840.4},{"$f":"AVERAGE(P22:P33)","v":2.4836983797934851},{"$f":"MAX(Q22:Q33)","v":39.9}]
[]
[null,null,null,null,null,null,null,null,null,null,{"$f":"+A6","v":2023},"mg/Nm3","95%ile 10-min avg maximum","Monthly CO 10-min avg mean","10-min avg maximum","Monthly daily mean","Monthly daily maximum"]
[null,null,null,null,null,null,null,null,null,null,"A3","Jan"]
[null,null,null,null,null,null,null,null,null,null,null,"Feb"]
[null,null,null,null,null,null,null,null,null,null,null,"Mar"]
[null,null,null,null,null,null,null,null,null,null,null,"Apr"]
[null,null,null,null,null,null,null,null,null,null,null,"May"]
[null,null,null,null,null,null,null,null,null,null,null,"Jun"]
[null,null,null,null,null,null,null,null,null,null,null,"Jul"]
[null,null,null,null,null,null,null,null,null,null,null,"Aug"]
[null,null,null,null,null,null,null,null,null,null,null,"Sep"]
[null,null,null,null,null,null,null,null,null,null,null,"Oct"]
[null,null,null,null,null,null,null,null,null,null,null,"Nov"]
["Comments :",null,null,null,null,null,null,null,null,null,null,"Dec"]
["Environment Agency explanatory note: The 10-minute average ELV is based on the “95th percentile”. In this case this means that 95% of the 10 minute averages in the relevant 24-hour period (i.e. 137) must be below 150 mg/Nm3, and 5% (i.e. 7) are allowed to be any value above 150 mg/Nm3. Whilst we expect operators to minimise CO emissions at all times, it is perfectly acceptable for the value of the maximum 10-minute average to be above 150 mg/Nm3, provided the 95th percentile ELV has been met for that period. \nThe elevated CO results relate to a power loss incident on the 07/02/2023 as discussed on the 'Permit Compliance' tab.",null,null,null,null,null,null,null,null,null,null,"Annual",{"$f":"AVERAGE(M37:M48)","v":{"$error":"#DIV/0!"}},null,{"$f":"MAX(O37:O48)","v":0},{"$f":"AVERAGE(P37:P48)","v":{"$error":"#DIV/0!"}},{"$f":"MAX(Q37:Q48)","v":0}]
[]
[null,null,null,null,null,null,null,null,null,null,{"$f":"+A6","v":2023},"mg/Nm3","95%ile 10-min avg maximum","Monthly CO 10-min avg mean","10-min avg maximum","Monthly daily mean","Monthly daily maximum"]
[null,null,null,null,null,null,null,null,null,null,"A4","Jan"]
[null,null,null,null,null,null,null,null,null,null,null,"Feb"]
[null,null,null,null,null,null,null,null,null,null,null,"Mar"]
[null,null,null,null,null,null,null,null,null,null,null,"Apr"]
[null,null,null,null,null,null,null,null,null,null,null,"May"]
[null,null,null,null,null,null,null,null,null,null,null,"Jun"]
[null,null,null,null,null,null,null,null,null,null,null,"Jul"]
[null,null,null,null,null,null,null,null,null,null,null,"Aug"]
[null,null,null,null,null,null,null,null,null,null,null,"Sep"]
[null,null,null,null,null,null,null,null,null,null,null,"Oct"]
[null,null,null,null,null,null,null,null,null,null,null,"Nov"]
[null,null,null,null,null,null,null,null,null,null,null,"Dec"]
[null,null,null,null,null,null,null,null,null,null,null,"Annual",{"$f":"AVERAGE(M52:M63)","v":{"$error":"#DIV/0!"}},null,{"$f":"MAX(O52:O63)","v":0},{"$f":"AVERAGE(P52:P63)","v":{"$error":"#DIV/0!"}},{"$f":"MAX(Q52:Q63)","v":0}]
[]
[null,null,null,null,null,null,null,null,null,null,{"$f":"+A6","v":2023},"mg/Nm3","95%ile 10-min avg maximum","Monthly CO 10-min avg mean","10-min avg maximum","Monthly daily mean","Monthly daily maximum"]
[null,null,null,null,null,null,null,null,null,null,"A5","Jan"]
[null,null,null,null,null,null,null,null,null,null,null,"Feb"]
[null,null,null,null,null,null,null,null,null,null,null,"Mar"]
[null,null,null,null,null,null,null,null,null,null,null,"Apr"]
[null,null,null,null,null,null,null,null,null,null,null,"May"]
[null,null,null,null,null,null,null,null,null,null,null,"Jun"]
[null,null,null,null,null,null,null,null,null,null,null,"Jul"]
[null,null,null,null,null,null,null,null,null,null,null,"Aug"]
[null,null,null,null,null,null,null,null,null,null,null,"Sep"]
[null,null,null,null,null,null,null,null,null,null,null,"Oct"]
[null,null,null,null,null,null,null,null,null,null,null,"Nov"]
[null,null,null,null,null,null,null,null,null,null,null,"Dec"]
[null,null,null,null,null,null,null,null,null,null,null,"Annual",{"$f":"AVERAGE(M67:M78)","v":{"$error":"#DIV/0!"}},null,{"$f":"MAX(O67:O78)","v":0},{"$f":"AVERAGE(P67:P78)","v":{"$error":"#DIV/0!"}},{"$f":"MAX(Q67:Q78)","v":0}]

{"sheet":"NH3","index":21,"n_rows":79,"n_cols":17,"rows_kept":79,"cut":false,"hidden":false,"merged":[[3,16,7,18],[9,16,11,18],[12,16,15,18],[66,9,78,9],[4,1,4,3],[4,4,4,6],[4,9,4,14],[6,9,18,9],[21,9,33,9],[36,9,48,9],[47,0,47,6],[48,0,51,6],[51,9,63,9],[18,4,18,6]]}
[{"$f":"+'Cover Page'!$B$29","v":"Annual Performance Report 2023"},null,null,null,{"$f":"+'Cover Page'!$B$33","v":"Suffolk Energy from Waste Facility"}]
[]
["Monitoring of Ammnonia emissions ",null,null,"Whole Installation",null,null,"See  Notes in Cell Q3",null,null,{"$f":"+A3","v":"Monitoring of Ammnonia emissions "},null,null,null,"Per Combustion Line",null,null,"Notes:"]
[null,null,null,null,null,null,null,null,null,null,null,null,null,null,null,null,"User to add logic to complete Whole installation, Table A5:G18. From the data in Per Combustion Line, Table J6:O79, subject to No. of lines installed"]
["mg/Nm3","1/2 Hourly Reference Periods",null,null,"Daily Reference Periods"]
[{"$f":"+'Cover Page'!C39","v":2023},"1/2 hourly NH3 ELV","Monthly 1/2 hourly mean","Highest 1/2 hourly maximum","Daily NH3 ELV*","Monthly daily mean","Highest daily maximum",null,null,{"$f":"+A6","v":2023},"mg/Nm3","Monthly 1/2 hourly mean","Monthly 1/2 hourly maximum","Monthly daily mean","Monthly daily maximum"]
["Jan","None",null,null,"None",null,null,null,null,"A1","Jan"]
["Feb",{"$f":"+B7","v":"None"},null,null,"None",null,null,null,null,null,"Feb"]
["Mar",{"$f":"+B8","v":"None"},null,null,"None",null,null,null,null,null,"Mar",null,null,null,null,null,"Whole Installation table A5:G18:"]
["Apr","None",null,null,"None",null,null,null,null,null,"Apr",null,null,null,null,null,"Mean: for 1/2 hourly and daily periods calculate mean of values across all operational combustion lines for the month"]
["May","None",null,null,"None",null,null,null,null,null,"May"]
["Jun","None",null,null,"None",null,null,null,null,null,"Jun"]
["Jul","None",null,null,"None",null,null,null,null,null,"Jul",null,null,null,null,null,"Maximum: for 1/2 hourly and daily periods use the highest value across all operational combustion lines for the month"]
["Aug","None",null,null,"None",null,null,null,null,null,"Aug"]
["Sep","None",null,null,"None",null,null,null,null,null,"Sep"]
["Oct","None",null,null,"None",null,null,null,null,null,"Oct"]
["Nov","None",null,null,"None",null,null,null,null,null,"Nov"]
["Dec","None",{"$f":"AVERAGE(L18,L33)","v":1.2583870967741935},{"$f":"MAX(M18,M33)","v":5.78},15,{"$f":"AVERAGE(N18,N33)","v":1.2583870967741935},{"$f":"MAX(O18,O33)","v":2.7},null,null,null,"Dec",1.0783870967741935,3.55,1.0783870967741935,1.45]
[null,null,null,null,"* ELV came into force on 3 December 2023",null,null,null,null,null,"Annual",{"$f":"AVERAGE(L7:L18)","v":1.0783870967741935},{"$f":"MAX(M7:M18)","v":3.55},{"$f":"AVERAGE(N7:N18)","v":1.0783870967741935},{"$f":"MAX(O7:O18)","v":1.45}]
[]
[null,null,null,null,null,null,null,null,null,{"$f":"+A6","v":2023},"mg/Nm3","Monthly 1/2 hourly mean","Monthly 1/2 hourly maximum","Monthly daily mean","Monthly daily maximum"]
[null,null,null,null,null,null,null,null,null,"A2","Jan"]
[null,null,null,null,null,null,null,null,null,null,"Feb"]
[null,null,null,null,null,null,null,null,null,null,"Mar"]
[null,null,null,null,null,null,null,null,null,null,"Apr"]
[null,null,null,null,null,null,null,null,null,null,"May"]
[null,null,null,null,null,null,null,null,null,null,"Jun"]
[null,null,null,null,null,null,null,null,null,null,"Jul"]
[null,null,null,null,null,null,null,null,null,null,"Aug"]
[null,null,null,null,null,null,null,null,null,null,"Sep"]
[null,null,null,null,null,null,null,null,null,null,"Oct"]
[null,null,null,null,null,null,null,null,null,null,"Nov"]
[null,null,null,null,null,null,null,null,null,null,"Dec",1.4383870967741936,5.78,1.4383870967741936,2.7]
[null,null,null,null,null,null,null,null,null,null,"Annual",{"$f":"AVERAGE(L22:L33)","v":1.4383870967741936},{"$f":"MAX(M22:M33)","v":5.78},{"$f":"AVERAGE(N22:N33)","v":1.4383870967741936},{"$f":"MAX(O22:O33)","v":2.7}]
[]
[null,null,null,null,null,null,null,null,null,{"$f":"+A6","v":2023},"mg/Nm3","Monthly 1/2 hourly mean","Monthly 1/2 hourly maximum","Monthly daily mean","Monthly daily maximum"]
[null,null,null,null,null,null,null,null,null,"A3","Jan"]
[null,null,null,null,null,null,null,null,null,null,"Feb"]
[null,null,null,null,null,null,null,null,null,null,"Mar"]
[null,null,null,null,null,null,null,null,null,null,"Apr"]
[null,null,null,null,null,null,null,null,null,null,"May"]
[null,null,null,null,null,null,null,null,null,null,"Jun"]
[null,null,null,null,null,null,null,null,null,null,"Jul"]
[null,null,null,null,null,null,null,null,null,null,"Aug"]
[null,null,null,null,null,null,null,null,null,null,"Sep"]
[null,null,null,null,null,null,null,null,null,null,"Oct"]
[null,null,null,null,null,null,null,null,null,null,"Nov"]
["Comments :",null,null,null,null,null,null,null,null,null,"Dec"]
["An indicated ELV value of zero in the table above means that no ammonia limit is/was set in the permit.  ",null,null,null,null,null,null,null,null,null,"Annual",{"$f":"AVERAGE(L37:L48)","v":{"$error":"#DIV/0!"}},{"$f":"MAX(M37:M48)","v":0},{"$f":"AVERAGE(N37:N48)","v":{"$error":"#DIV/0!"}},{"$f":"MAX(O37:O48)","v":0}]
[]
[null,null,null,null,null,null,null,null,null,{"$f":"+A6","v":2023},"mg/Nm3","Monthly 1/2 hourly mean","Monthly 1/2 hourly maximum","Monthly daily mean","Monthly daily maximum"]
[null,null,null,null,null,null,null,null,null,"A4","Jan"]
[null,null,null,null,null,null,null,null,null,null,"Feb"]
[null,null,null,null,null,null,null,null,null,null,"Mar"]
[null,null,null,null,null,null,null,null,null,null,"Apr"]
[null,null,null,null,null,null,null,null,null,null,"May"]
[null,null,null,null,null,null,null,null,null,null,"Jun"]
[null,null,null,null,null,null,null,null,null,null,"Jul"]
[null,null,null,null,null,null,null,null,null,null,"Aug"]
[null,null,null,null,null,null,null,null,null,null,"Sep"]
[null,null,null,null,null,null,null,null,null,null,"Oct"]
[null,null,null,null,null,null,null,null,null,null,"Nov"]
[null,null,null,null,null,null,null,null,null,null,"Dec"]
[null,null,null,null,null,null,null,null,null,null,"Annual",{"$f":"AVERAGE(L52:L63)","v":{"$error":"#DIV/0!"}},{"$f":"MAX(M52:M63)","v":0},{"$f":"AVERAGE(N52:N63)","v":{"$error":"#DIV/0!"}},{"$f":"MAX(O52:O63)","v":0}]
[]
[null,null,null,null,null,null,null,null,null,{"$f":"+A6","v":2023},"mg/Nm3","Monthly 1/2 hourly mean","Monthly 1/2 hourly maximum","Monthly daily mean","Monthly daily maximum"]
[null,null,null,null,null,null,null,null,null,"A5","Jan"]
[null,null,null,null,null,null,null,null,null,null,"Feb"]
[null,null,null,null,null,null,null,null,null,null,"Mar"]
[null,null,null,null,null,null,null,null,null,null,"Apr"]
[null,null,null,null,null,null,null,null,null,null,"May"]
[null,null,null,null,null,null,null,null,null,null,"Jun"]
[null,null,null,null,null,null,null,null,null,null,"Jul"]
[null,null,null,null,null,null,null,null,null,null,"Aug"]
[null,null,null,null,null,null,null,null,null,null,"Sep"]
[null,null,null,null,null,null,null,null,null,null,"Oct"]
[null,null,null,null,null,null,null,null,null,null,"Nov"]
[null,null,null,null,null,null,null,null,null,null,"Dec"]
[null,null,null,null,null,null,null,null,null,null,"Annual",{"$f":"AVERAGE(L67:L78)","v":{"$error":"#DIV/0!"}},{"$f":"MAX(M67:M78)","v":0},{"$f":"AVERAGE(N67:N78)","v":{"$error":"#DIV/0!"}},{"$f":"MAX(O67:O78)","v":0}]